Workbook

Sheet Data Entry
A1: LabVIEW Measurement
A2: Writer_Version | B2: 0.92
A3: Reader_Version | B3: 1
A4: Separator | B4: Tab
A5: Multi_Headings | B5: No
A6: X_Columns | B6: One
A7: Time_Pref | B7: Absolute
A8: Operator | B8: ME
A9: Date | B9: 2008-08-12
A10: Time | B10: 22:24:30.079
A11: ***End_of_Header***
A13: Channels | B13: 2
A14: Samples | B14: 10 | C14: 10
A15: Date | B15: 2008-08-12 | C15: 2008-08-12
A16: Time | B16: 22:24:30.172 | C16: 22:24:30.172
A17: Y_Unit_Label | B17: Nm | C17: degrees
A18: X_Dimension | B18: Time | C18: Time
A19: X0 | B19: 0 | C19: 0
A20: Delta_X | B20: 0.01 | C20: 0.01
A21: ***End_of_Header***
A22: X_Value | B22: Torque (Mean) | C22: Angle (Mean) | D22: Comment
A23: 0 | B23: -0.002586 | C23: 0.002022
A24: 0.01 | B24: -0.002505 | C24: 0.001076
A25: 0.02 | B25: -0.003579 | C25: 0.0001
A26: 0.03 | B26: -0.002572 | C26: 8.60517e-05
A27: 0.04 | B27: -0.002872 | C27: 0.000115
A28: 0.05 | B28: -0.002492 | C28: -0.000359
A29: 0.06 | B29: -0.003867 | C29: -0.000129
A30: 0.07 | B30: -0.003527 | C30: -0.000272
A31: 0.08 | B31: -0.002505 | C31: -0.000186
A32: 0.09 | B32: -0.005252 | C32: 0.001162
A33: 0.1 | B33: -0.002214 | C33: -5.73678e-05
A34: 0.11 | B34: -0.00531 | C34: -0.000129
A35: 0.12 | B35: -0.002612 | C35: -0.001578
A36: 0.13 | B36: -0.003398 | C36: 0.000531
A37: 0.14 | B37: -0.004379 | C37: 0.000445
A38: 0.15 | B38: -0.003649 | C38: -0.000272
A39: 0.16 | B39: -0.003314 | C39: 0.001047
A40: 0.17 | B40: -0.003913 | C40: -0.000186
A41: 0.18 | B41: -0.003583 | C41: -0.000387
A42: 0.19 | B42: -0.003243 | C42: 0.000158
A43: 0.2 | B43: -0.002728 | C43: 0.00066
A44: 0.21 | B44: -0.005377 | C44: 0.001147
A45: 0.22 | B45: -0.003213 | C45: -0.000645
A46: 0.23 | B46: -0.003819 | C46: -0.000789
A47: 0.24 | B47: -0.00397 | C47: 0.00099
A48: 0.25 | B48: -0.003022 | C48: 0.000158
A49: 0.26 | B49: -0.005139 | C49: 0.00033
A50: 0.27 | B50: -0.00311 | C50: -0.000402
A51: 0.28 | B51: -0.005203 | C51: 0.000344
A52: 0.29 | B52: -0.003597 | C52: 0.000617
A53: 0.3 | B53: -0.003294 | C53: -0.000731
A54: 0.31 | B54: -0.00484 | C54: 0.000688
A55: 0.32 | B55: -0.003483 | C55: 0.000344
A56: 0.33 | B56: -0.00351 | C56: 0.000143
A57: 0.34 | B57: -0.002537 | C57: 0.000215
A58: 0.35 | B58: -0.003611 | C58: 0.000617
A59: 0.36 | B59: -0.003231 | C59: 1.434195e-05
A60: 0.37 | B60: -0.004458 | C60: -0.000459
A61: 0.38 | B61: -0.004161 | C61: 0.000717
A62: 0.39 | B62: -0.004175 | C62: -0.000846
A63: 0.4 | B63: -0.004413 | C63: 4.302585e-05
A64: 0.41 | B64: -0.004154 | C64: 0.000531
A65: 0.42 | B65: -0.00397 | C65: 0.000688
A66: 0.43 | B66: -0.004201 | C66: -0.000947
A67: 0.44 | B67: -0.00317 | C67: 1.434195e-05
A68: 0.45 | B68: -0.004989 | C68: -0.000229
A69: 0.46 | B69: -0.005311 | C69: -0.001233
A70: 0.47 | B70: -0.004769 | C70: 0.000846
A71: 0.48 | B71: -0.003527 | C71: 0.000746
A72: 0.49 | B72: -0.002973 | C72: -0.000531
A73: 0.5 | B73: -0.004861 | C73: 0.000129
A74: 0.51 | B74: -0.003529 | C74: 0.00142
A75: 0.52 | B75: -0.004154 | C75: 0.001248
A76: 0.53 | B76: -0.00327 | C76: -0.000373
A77: 0.54 | B77: -0.003854 | C77: 0.000287
A78: 0.55 | B78: -0.003826 | C78: -0.000875
A79: 0.56 | B79: -0.003736 | C79: -4.302585e-05
A80: 0.57 | B80: -0.003696 | C80: 0.000272
A81: 0.58 | B81: -0.004466 | C81: -0.000301
A82: 0.59 | B82: -0.005486 | C82: 8.60517e-05
A83: 0.6 | B83: -0.00458 | C83: -0.000588
A84: 0.61 | B84: -0.005793 | C84: 0.000488
A85: 0.62 | B85: -0.003736 | C85: 0.001707
A86: 0.63 | B86: -0.005109 | C86: -0.001276
A87: 0.64 | B87: -0.0036 | C87: 0.000817
A88: 0.65 | B88: -0.002924 | C88: 0.000129
A89: 0.66 | B89: -0.004061 | C89: 0.000215
A90: 0.67 | B90: -0.004452 | C90: -0.001248
A91: 0.68 | B91: -0.003755 | C91: 0.000602
A92: 0.69 | B92: -0.003653 | C92: 1.434195e-05
A93: 0.7 | B93: -0.003172 | C93: 0.000688
A94: 0.71 | B94: -0.004499 | C94: -0.000932
A95: 0.72 | B95: -0.003779 | C95: -4.302585e-05
A96: 0.73 | B96: -0.003882 | C96: -2.86839e-05
A97: 0.74 | B97: -0.001965 | C97: 0.000932
A98: 0.75 | B98: -0.004234 | C98: -0.000688
A99: 0.76 | B99: -0.004598 | C99: -0.000817
A100: 0.77 | B100: -0.002968 | C100: 0.000502
A101: 0.78 | B101: -0.004663 | C101: 0.000516
A102: 0.79 | B102: -0.002743 | C102: -0.000889
A103: 0.8 | B103: -0.004954 | C103: 0.000215
A104: 0.81 | B104: -0.004001 | C104: -2.86839e-05
A105: 0.82 | B105: -0.003058 | C105: -0.000488
A106: 0.83 | B106: -0.004528 | C106: 0.000502
A107: 0.84 | B107: -0.003555 | C107: -0.000344
A108: 0.85 | B108: -0.004073 | C108: -0.000129
A109: 0.86 | B109: -0.003844 | C109: -0.00043
A110: 0.87 | B110: -0.00345 | C110: -0.000316
A111: 0.88 | B111: -0.003366 | C111: 0.000244
A112: 0.89 | B112: -0.004129 | C112: -0.00043
A113: 0.9 | B113: -0.00086 | C113: 0.000316
A114: 0.91 | B114: -0.005745 | C114: -0.000172
A115: 0.92 | B115: -0.004937 | C115: 0.000445
A116: 0.93 | B116: -0.003684 | C116: -0.00043
A117: 0.94 | B117: -0.004444 | C117: -0.000588
A118: 0.95 | B118: -0.003662 | C118: 0.000602
A119: 0.96 | B119: -0.004045 | C119: 0.00218
A120: 0.97 | B120: -0.003725 | C120: -0.000559
A121: 0.98 | B121: -0.005821 | C121: -7.170975e-05
A122: 0.99 | B122: -0.003127 | C122: -0.000645
A123: 1 | B123: -0.004512 | C123: 0.001477
A124: 1.01 | B124: -0.003673 | C124: 0.000287
A125: 1.02 | B125: -0.00374 | C125: -0.000459
A126: 1.03 | B126: -0.004687 | C126: 4.302585e-05
A127: 1.04 | B127: -0.003858 | C127: 4.302585e-05
A128: 1.05 | B128: -0.004091 | C128: 0.000115
A129: 1.06 | B129: -0.004033 | C129: -0.000588
A130: 1.07 | B130: -0.004279 | C130: 0.00033
A131: 1.08 | B131: -0.003442 | C131: 0.000947
A132: 1.09 | B132: -0.004558 | C132: -0.000717
A133: 1.1 | B133: -0.005061 | C133: -0.000416
A134: 1.11 | B134: -0.003817 | C134: 0.000215
A135: 1.12 | B135: -0.005209 | C135: -0.000602
A136: 1.13 | B136: -0.004155 | C136: -8.60517e-05
A137: 1.14 | B137: -0.00367 | C137: -0.000774
A138: 1.15 | B138: -0.003114 | C138: 0.001076
A139: 1.16 | B139: -0.003645 | C139: -0.000258
A140: 1.17 | B140: -0.004071 | C140: 0.001133
A141: 1.18 | B141: -0.003346 | C141: 0
A142: 1.19 | B142: -0.004466 | C142: -0.000229
A143: 1.2 | B143: -0.00338 | C143: 0.000574
A144: 1.21 | B144: -0.004513 | C144: -0.000143
A145: 1.22 | B145: -0.005937 | C145: 0.000904
A146: 1.23 | B146: -0.004584 | C146: -0.000488
A147: 1.24 | B147: -0.004139 | C147: 0.000344
A148: 1.25 | B148: -0.00243 | C148: 0.000502
A149: 1.26 | B149: -0.003458 | C149: -0.000143
A150: 1.27 | B150: -0.005331 | C150: -0.001535
A151: 1.28 | B151: -0.003092 | C151: 0.000861
A152: 1.29 | B152: -0.003284 | C152: 0.000272
A153: 1.3 | B153: -0.004046 | C153: 7.170975e-05
A154: 1.31 | B154: -0.003383 | C154: 0.001434
A155: 1.32 | B155: -0.004697 | C155: 0.000488
A156: 1.33 | B156: -0.004286 | C156: 0.001492
A157: 1.34 | B157: -0.004131 | C157: 4.302585e-05
A158: 1.35 | B158: -0.002632 | C158: -0.001219
A159: 1.36 | B159: -0.004048 | C159: 0.000602
A160: 1.37 | B160: -0.003451 | C160: -0.001176
A161: 1.38 | B161: -0.004418 | C161: 0
A162: 1.39 | B162: -0.003214 | C162: 0
A163: 1.4 | B163: -0.003555 | C163: 0.000158
A164: 1.41 | B164: -0.005373 | C164: 0.000645
A165: 1.42 | B165: -0.002682 | C165: 0.000301
A166: 1.43 | B166: -0.003229 | C166: 0.001506
A167: 1.44 | B167: -0.003895 | C167: 0.000445
A168: 1.45 | B168: -0.003332 | C168: 0.00109
A169: 1.46 | B169: -0.004834 | C169: 1.434195e-05
A170: 1.47 | B170: -0.004503 | C170: 5.73678e-05
A171: 1.48 | B171: -0.004979 | C171: -0.000416
A172: 1.49 | B172: -0.005333 | C172: 0.00076
A173: 1.5 | B173: -0.003682 | C173: 0.000975
A174: 1.51 | B174: -0.004172 | C174: -0.000645
A175: 1.52 | B175: -0.004031 | C175: 0.000961
A176: 1.53 | B176: -0.003815 | C176: 4.302585e-05
A177: 1.54 | B177: -0.003524 | C177: 0.000215
A178: 1.55 | B178: -0.003935 | C178: 0.00066
A179: 1.56 | B179: -0.00339 | C179: -0.000832
A180: 1.57 | B180: -0.004653 | C180: 0.001664
A181: 1.58 | B181: -0.003056 | C181: -0.000602
A182: 1.59 | B182: -0.005197 | C182: -0.000645
A183: 1.6 | B183: -0.002935 | C183: 0.000602
A184: 1.61 | B184: -0.002708 | C184: -0.000645
A185: 1.62 | B185: -0.005719 | C185: -0.00043
A186: 1.63 | B186: -0.002842 | C186: -4.302585e-05
A187: 1.64 | B187: -0.004816 | C187: -0.000674
A188: 1.65 | B188: -0.002745 | C188: 0.000617
A189: 1.66 | B189: -0.003019 | C189: 0.000947
A190: 1.67 | B190: -0.002163 | C190: 0
A191: 1.68 | B191: -0.00303 | C191: 0.000373
A192: 1.69 | B192: -0.001917 | C192: 0.000545
A193: 1.7 | B193: -0.003739 | C193: -0.001205
A194: 1.71 | B194: -0.004876 | C194: 0.000774
A195: 1.72 | B195: -0.003826 | C195: -7.170975e-05
A196: 1.73 | B196: -0.004115 | C196: -0.000502
A197: 1.74 | B197: -0.004219 | C197: 0.000459
A198: 1.75 | B198: -0.003789 | C198: 0.000387
A199: 1.76 | B199: -0.004482 | C199: -0.000287
A200: 1.77 | B200: -0.002891 | C200: 0.000703
A201: 1.78 | B201: -0.004678 | C201: -0.000947
... 2411 more rows

Sheet Summary
J1: y=A+B*exp(Cx)
B2: IP1 | D2: IP2 | F2: Min | H2: Max | J2: Bottom-Unload | M2: Top-Load | P2: Top-Unload | S2: Bottom-Load | V2: Dependent Variables
A3: Specimen and Run | B3: Torque | C3: Angle | D3: Torque | E3: Angle | F3: Torque | G3: Angle | H3: Torque | I3: Angle | J3: A | K3: B | L3: C | M3: A | N3: B | O3: C | P3: A | Q3: B | R3: C | S3: A | T3: B | U3: C | V3: Total Range (Nm) | W3: NZ Range (Deg.) | X3: Hysteresis (Nm*deg)
A4: 9BF1 | B4: 0.2041590065 | C4: 4.868747711 | D4: -0.2041590065 | E4: -4.868747711 | F4: -1.611130953 | G4: -15.08745861 | H4: 1.755771995 | I4: 15.09037018 | J4: -14.48224061 | K4: 12.50891246 | L4: 3.144971859 | M4: 15.08680138 | N4: -14.40526333 | O4: -1.771994653 | P4: 14.87073089 | Q4: -12.06220147 | R4: -2.104158262 | S4: -15.0503495 | T4: 15.81582829 | U4: 2.06074598 | V4: 3.366902947 | W4: 9.737495422 | X4: 4.501121151

Sheet 9BF1
A1: Torque (Mean) | B1: Angle (Mean) | F1: Torque (Mean) | G1: Angle (Mean) | W1: SumSquares | X1: A | Y1: B | Z1: C
A2: -0.002586 | B2: 0.002022 | F2: -1.617784 | G2: 15.089108 | I2: =F2 -> -1.617784 | J2: =-G2 -> -15.089108 | Q2: =I2+N$7 -> -1.611131 | R2: =J2+O$7 -> -15.0874585 | S2: =IF(R2=MAX(R1:R3),"Up-Unload",IF(R2=MIN(R1:R3),"Down-Unload",IF(R1>0,IF(R2<0,"Down-Load",S1),IF(R1<0,IF(R2>0,"Up-Load",S1),S1)))) -> Down-Unload | T2: =IF(S2="Down-Unload",$X$2+$Y$2*EXP($Z$2*Q2),IF(S2="Up-Load",$X$3+$Y$3*EXP($Z$3*Q2),IF(S2="Up-Unload",$X$4+$Y$4*EXP($Z$4*Q2),IF(S2="Down-Load",$X$5+$Y$5*EXP($Z$5*Q2),"")))) -> -14.40341523 | U2: =(R2-T2)^2 -> 0.4679151934 | V2: Down-Unload | W2: =SUMIF($S$2:$S$100,V2,$U$2:$U$100) -> 9.409763219 | X2: -14.48224061 | Y2: 12.50891246 | Z2: 3.144971859
A3: -0.002505 | B3: 0.001076 | F3: -1.63561 | G3: 15.054501 | I3: =F3 -> -1.63561 | J3: =-G3 -> -15.054501 | N3: Torque | O3: Angle | P3: =IF(R2<$O$10,IF(R3>$O$10,1,""),IF(R3=$O$9,1,"")) ->  | Q3: =I3+N$7 -> -1.628957 | R3: =J3+O$7 -> -15.0528515 | S3: =IF(R3=MAX(R2:R4),"Up-Unload",IF(R3=MIN(R2:R4),"Down-Unload",IF(R2>0,IF(R3<0,"Down-Load",S2),IF(R2<0,IF(R3>0,"Up-Load",S2),S2)))) -> Down-Unload | T3: =IF(S3="Down-Unload",$X$2+$Y$2*EXP($Z$2*Q3),IF(S3="Up-Load",$X$3+$Y$3*EXP($Z$3*Q3),IF(S3="Up-Unload",$X$4+$Y$4*EXP($Z$4*Q3),IF(S3="Down-Load",$X$5+$Y$5*EXP($Z$5*Q3),"")))) -> -14.40771277 | U3: =(R3-T3)^2 -> 0.4162039804 | V3: Up-Load | W3: =SUMIF($S$2:$S$100,V3,$U$2:$U$100) -> 15.67241664 | X3: 15.08680138 | Y3: -14.40526333 | Z3: -1.771994653
A4: -0.003579 | B4: 0.0001 | F4: -1.557337 | G4: 14.954868 | I4: -1.557337 | J4: -14.954868 | K4: =(J5-J3)/(I5-I3) -> 1.726705724 | M4: IP 1 | N4: =LOOKUP(-1,$M$11:$M$101,I$11:I$101) -> 0.197506 | O4: =LOOKUP(-1,$M$11:$M$101,J$11:J$101) -> 4.867098 | P4: =IF(R3<$O$10,IF(R4>$O$10,1,""),IF(R4=$O$9,1,"")) ->  | Q4: -1.550684 | R4: -14.9532185 | S4: Down-Unload | T4: -14.38691113 | U4: 0.3207040396 | V4: Up-Unload | W4: 8.351980817 | X4: 14.87073089 | Y4: -12.06220147 | Z4: -2.104158262
A5: -0.002572 | B5: 8.60517e-05 | F5: -1.487623 | G5: 14.798971 | I5: -1.487623 | J5: -14.798971 | K5: =(J6-J4)/(I6-I4) -> 2.792077803 | M5: IP 2 | N5: =LOOKUP(1,$M$11:$M$101,I$11:I$101) -> -0.210812 | O5: =LOOKUP(1,$M$11:$M$101,J$11:J$101) -> -4.870397 | Q5: -1.48097 | R5: -14.7973215 | S5: Down-Unload | T5: -14.36354199 | U5: 0.1881646649 | V5: Down-Load | W5: 7.437482419 | X5: -15.0503495 | Y5: 15.81582829 | Z5: 2.06074598
A6: -0.002872 | B6: 0.000115 | F6: -1.42346 | G6: 14.581073 | I6: -1.42346 | J6: -14.581073 | K6: 2.376112499 | Q6: -1.416807 | R6: -14.5794235 | S6: Down-Unload | T6: -14.33700192 | U6: 0.05876822203
A7: -0.002492 | B7: -0.000359 | C7: =IF(B7>1,IF(B7=MAX(B2:B12),IF(SUM(C$2:C5)>0,MAX(C$2:C5)+1,1),""),"") ->  | D7: =IF(C7=MAX(C7:$C$3000)-2,"Start","") ->  | F7: -1.277061 | G7: 14.298652 | I7: -1.277061 | J7: -14.298652 | K7: 2.520957477 | M7: Offset | N7: =-(N4+N5)/2 -> 0.006653 | O7: =-(O4+O5)/2 -> 0.0016495 | Q7: -1.270408 | R7: -14.2970025 | S7: Down-Unload | T7: -14.25207496 | U7: 0.002018483629
A8: -0.003867 | B8: -0.000129 | C8: =IF(B8>1,IF(B8=MAX(B3:B13),IF(SUM(C$2:C6)>0,MAX(C$2:C6)+1,1),""),"") ->  | D8: =IF(C8=MAX(C8:$C$3000)-2,"Start","") ->  | F8: -1.17677 | G8: 13.959178 | I8: -1.17677 | J8: -13.959178 | K8: 3.427223574 | Q8: -1.170117 | R8: -13.9575285 | S8: Down-Unload | T8: -14.1667239 | U8: 0.04376271736
A9: -0.003527 | B9: -0.000272 | C9: =IF(B9>1,IF(B9=MAX(B4:B14),IF(SUM(C$2:C7)>0,MAX(C$2:C7)+1,1),""),"") ->  | D9: =IF(C9=MAX(C9:$C$3000)-2,"Start","") ->  | F9: -1.063812 | G9: 13.5678 | I9: -1.063812 | J9: -13.5678 | K9: 2.86125746 | M9: IP 1* | N9: =N4+N$7 -> 0.204159 | O9: =O4+O$7 -> 4.8687475 | Q9: -1.057159 | R9: -13.5661505 | S9: Down-Unload | T9: -14.0321444 | U9: 0.2171503146
A10: -0.002505 | B10: -0.000186 | C10: =IF(B10>1,IF(B10=MAX(B5:B15),IF(SUM(C$2:C8)>0,MAX(C$2:C8)+1,1),""),"") ->  | D10: =IF(C10=MAX(C10:$C$3000)-2,"Start","") ->  | F10: -0.88523 | G10: 13.125007 | I10: -0.88523 | J10: -13.125007 | K10: 3.589753103 | M10: IP 2* | N10: =N5+N$7 -> -0.204159 | O10: =O5+O$7 -> -4.8687475 | Q10: -0.878577 | R10: -13.1233575 | S10: Down-Unload | T10: -13.69297988 | U10: 0.3244696535
A11: -0.005252 | B11: 0.001162 | C11: =IF(B11>1,IF(B11=MAX(B6:B16),IF(SUM(C$2:C9)>0,MAX(C$2:C9)+1,1),""),"") ->  | D11: =IF(C11=MAX(C11:$C$3000)-2,"Start","") ->  | F11: -0.802367 | G11: 12.629277 | I11: -0.802367 | J11: -12.629277 | K11: 4.759405619 | Q11: -0.795714 | R11: -12.6276275 | S11: Down-Unload | T11: -13.45800842 | U11: 0.6895324718
A12: -0.002214 | B12: -5.73678e-05 | C12: =IF(B12>1,IF(B12=MAX(B7:B17),IF(SUM(C$2:C10)>0,MAX(C$2:C10)+1,1),""),"") ->  | D12: =IF(C12=MAX(C12:$C$3000)-2,"Start","") ->  | F12: -0.666717 | G12: 12.085015 | I12: -0.666717 | J12: -12.085015 | K12: 4.217992489 | Q12: -0.660064 | R12: -12.0833655 | S12: Down-Unload | T12: -12.91305199 | U12: 0.688379675
A13: -0.00531 | B13: -0.000129 | C13: =IF(B13>1,IF(B13=MAX(B8:B18),IF(SUM(C$2:C11)>0,MAX(C$2:C11)+1,1),""),"") ->  | D13: =IF(C13=MAX(C13:$C$3000)-2,"Start","") ->  | F13: -0.532899 | G13: 11.492663 | I13: -0.532899 | J13: -11.492663 | K13: 6.127189032 | Q13: -0.526246 | R13: -11.4910135 | S13: Down-Unload | T13: -12.0919558 | U13: 0.361131648
A14: -0.002612 | B14: -0.001578 | C14: =IF(B14>1,IF(B14=MAX(B9:B19),IF(SUM(C$2:C12)>0,MAX(C$2:C12)+1,1),""),"") ->  | D14: =IF(C14=MAX(C14:$C$3000)-2,"Start","") ->  | F14: -0.465772 | G14: 10.853787 | I14: -0.465772 | J14: -10.853787 | K14: 7.952491953 | Q14: -0.459119 | R14: -10.8521375 | S14: Down-Unload | T14: -11.53011619 | U14: 0.4596551096
A15: -0.003398 | B15: 0.000531 | C15: =IF(B15>1,IF(B15=MAX(B10:B20),IF(SUM(C$2:C13)>0,MAX(C$2:C13)+1,1),""),"") ->  | D15: =IF(C15=MAX(C15:$C$3000)-2,"Start","") ->  | F15: -0.367306 | G15: 10.175786 | I15: -0.367306 | J15: -10.175786 | K15: 7.071096218 | Q15: -0.360653 | R15: -10.1741365 | S15: Down-Unload | T15: -10.45855681 | U15: 0.08089491257
A16: -0.004379 | B16: 0.000445 | C16: =IF(B16>1,IF(B16=MAX(B11:B21),IF(SUM(C$2:C14)>0,MAX(C$2:C14)+1,1),""),"") ->  | D16: =IF(C16=MAX(C16:$C$3000)-2,"Start","") ->  | F16: -0.267618 | G16: 9.452621 | I16: -0.267618 | J16: -9.452621 | K16: 12.2421246 | Q16: -0.260965 | R16: -9.4509715 | S16: Down-Unload | T16: -8.976926619 | U16: 0.2247185491
A17: -0.003649 | B17: -0.000272 | C17: =IF(B17>1,IF(B17=MAX(B12:B22),IF(SUM(C$2:C15)>0,MAX(C$2:C15)+1,1),""),"") ->  | D17: =IF(C17=MAX(C17:$C$3000)-2,"Start","") ->  | F17: -0.246455 | G17: 8.696313 | I17: -0.246455 | J17: -8.696313 | K17: 18.61978077 | Q17: -0.239802 | R17: -8.6946635 | S17: Down-Unload | T17: -8.5980403 | U17: 0.009336042856
A18: -0.003314 | B18: 0.001047 | C18: =IF(B18>1,IF(B18=MAX(B13:B23),IF(SUM(C$2:C16)>0,MAX(C$2:C16)+1,1),""),"") ->  | D18: =IF(C18=MAX(C18:$C$3000)-2,"Start","") ->  | F18: -0.184416 | G18: 7.903418 | I18: -0.184416 | J18: -7.903418 | K18: 13.08458461 | Q18: -0.177763 | R18: -7.9017685 | S18: Down-Unload | T18: -7.330314156 | U18: 0.3265600674
A19: -0.003913 | B19: -0.000186 | C19: =IF(B19>1,IF(B19=MAX(B14:B24),IF(SUM(C$2:C17)>0,MAX(C$2:C17)+1,1),""),"") ->  | D19: =IF(C19=MAX(C19:$C$3000)-2,"Start","") ->  | F19: -0.122981 | G19: 7.080707 | I19: -0.122981 | J19: -7.080707 | K19: 24.32716785 | Q19: -0.116328 | R19: -7.0790575 | S19: Down-Unload | T19: -5.805958568 | U19: 1.62078089
A20: -0.003583 | B20: -0.000387 | C20: =IF(B20>1,IF(B20=MAX(B15:B25),IF(SUM(C$2:C18)>0,MAX(C$2:C18)+1,1),""),"") ->  | D20: =IF(C20=MAX(C20:$C$3000)-2,"Start","") ->  | F20: -0.115592 | G20: 6.229125 | I20: -0.115592 | J20: -6.229125 | K20: 56.26843821 | Q20: -0.108939 | R20: -6.2274755 | S20: Down-Unload | T20: -5.601976508 | U20: 0.3912489891
A21: -0.003243 | B21: 0.000158 | C21: =IF(B21>1,IF(B21=MAX(B16:B26),IF(SUM(C$2:C19)>0,MAX(C$2:C19)+1,1),""),"") ->  | D21: =IF(C21=MAX(C21:$C$3000)-2,"Start","") ->  | F21: -0.092311 | G21: 5.354954 | I21: -0.092311 | J21: -5.354954 | K21: 31.64526815 | Q21: -0.085658 | R21: -5.3533045 | S21: Down-Unload | T21: -4.92738575 | U21: 0.1814067817
A22: -0.002728 | B22: 0.00066 | C22: =IF(B22>1,IF(B22=MAX(B17:B27),IF(SUM(C$2:C20)>0,MAX(C$2:C20)+1,1),""),"") ->  | D22: =IF(C22=MAX(C22:$C$3000)-2,"Start","") ->  | F22: -0.059747 | G22: 4.461895 | I22: -0.059747 | J22: -4.461895 | K22: 37.9374567 | P22: 1 | Q22: -0.053094 | R22: -4.4602455 | S22: Down-Unload | T22: -3.896982897 | U22: 0.3172647595
A23: -0.005377 | B23: 0.001147 | C23: =IF(B23>1,IF(B23=MAX(B18:B28),IF(SUM(C$2:C21)>0,MAX(C$2:C21)+1,1),""),"") ->  | D23: =IF(C23=MAX(C23:$C$3000)-2,"Start","") ->  | F23: -0.04468 | G23: 3.547955 | I23: -0.04468 | J23: -3.547955 | K23: 77.28396306 | Q23: -0.038027 | R23: -3.5463055 | S23: Down-Unload | T23: -3.38332354 | U23: 0.02656311913
A24: -0.003213 | B24: -0.000645 | C24: =IF(B24>1,IF(B24=MAX(B19:B29),IF(SUM(C$2:C22)>0,MAX(C$2:C22)+1,1),""),"") ->  | D24: =IF(C24=MAX(C24:$C$3000)-2,"Start","") ->  | F24: -0.035927 | G24: 2.620991 | I24: -0.035927 | J24: -2.620991 | K24: 82.55527083 | Q24: -0.029274 | R24: -2.6193415 | S24: Down-Unload | T24: -3.073549067 | U24: 0.2063045142
A25: -0.003819 | B25: -0.000789 | C25: =IF(B25>1,IF(B25=MAX(B20:B30),IF(SUM(C$2:C23)>0,MAX(C$2:C23)+1,1),""),"") ->  | D25: =IF(C25=MAX(C25:$C$3000)-2,"Start","") ->  | F25: -0.022046 | G25: 1.679399 | I25: -0.022046 | J25: -1.679399 | K25: 53.44152121 | Q25: -0.015393 | R25: -1.6777495 | S25: Down-Unload | T25: -2.564467372 | U25: 0.7862685842
A26: -0.00397 | B26: 0.00099 | C26: =IF(B26>1,IF(B26=MAX(B21:B31),IF(SUM(C$2:C24)>0,MAX(C$2:C24)+1,1),""),"") ->  | D26: =IF(C26=MAX(C26:$C$3000)-2,"Start","") ->  | F26: -0.000692 | G26: 0.737979 | I26: -0.000692 | J26: -0.737979 | K26: 40.33763464 | Q26: 0.005961 | R26: -0.7363295 | S26: Down-Unload | T26: -1.736609378 | U26: 1.000559835
A27: -0.003022 | B27: 0.000158 | C27: =IF(B27>1,IF(B27=MAX(B22:B32),IF(SUM(C$2:C25)>0,MAX(C$2:C25)+1,1),""),"") ->  | D27: =IF(C27=MAX(C27:$C$3000)-2,"Start","") ->  | F27: 0.024839 | G27: -0.211831 | I27: 0.024839 | J27: 0.211831 | K27: 71.80928846 | Q27: 0.031492 | R27: 0.2134805 | S27: Up-Load | T27: 1.463386521 | U27: 1.562265062
A28: -0.005139 | B28: 0.00033 | C28: =IF(B28>1,IF(B28=MAX(B23:B33),IF(SUM(C$2:C26)>0,MAX(C$2:C26)+1,1),""),"") ->  | D28: =IF(C28=MAX(C28:$C$3000)-2,"Start","") ->  | F28: 0.025814 | G28: -1.165398 | I28: 0.025814 | J28: 1.165398 | K28: 69.68458966 | Q28: 0.032467 | R28: 1.1670475 | S28: Up-Load | T28: 1.486903303 | U28: 0.1023077349
A29: -0.00311 | B29: -0.000402 | C29: =IF(B29>1,IF(B29=MAX(B24:B34),IF(SUM(C$2:C27)>0,MAX(C$2:C27)+1,1),""),"") ->  | D29: =IF(C29=MAX(C29:$C$3000)-2,"Start","") ->  | F29: 0.052048 | G29: -2.107879 | I29: 0.052048 | J29: 2.107879 | K29: 30.62555742 | Q29: 0.058701 | R29: 2.1095285 | S29: Up-Load | T29: 2.104645491 | U29: 2.384377835e-05
A30: -0.005203 | B30: 0.000344 | C30: =IF(B30>1,IF(B30=MAX(B25:B35),IF(SUM(C$2:C28)>0,MAX(C$2:C28)+1,1),""),"") ->  | D30: =IF(C30=MAX(C30:$C$3000)-2,"Start","") ->  | F30: 0.087033 | G30: -3.040264 | I30: 0.087033 | J30: 3.040264 | K30: 32.1614163 | Q30: 0.093686 | R30: 3.0419135 | S30: Up-Load | T30: 2.885012656 | U30: 0.02461787489
A31: -0.003597 | B31: 0.000617 | C31: =IF(B31>1,IF(B31=MAX(B26:B36),IF(SUM(C$2:C29)>0,MAX(C$2:C29)+1,1),""),"") ->  | D31: =IF(C31=MAX(C31:$C$3000)-2,"Start","") ->  | F31: 0.109663 | G31: -3.960859 | I31: 0.109663 | J31: 3.960859 | K31: 16.53647498 | Q31: 0.116316 | R31: 3.9625085 | S31: Up-Load | T31: 3.364626713 | U31: 0.3574626314
A32: -0.003294 | B32: -0.000731 | C32: =IF(B32>1,IF(B32=MAX(B27:B37),IF(SUM(C$2:C30)>0,MAX(C$2:C30)+1,1),""),"") ->  | D32: =IF(C32=MAX(C32:$C$3000)-2,"Start","") ->  | F32: 0.197506 | G32: -4.867098 | I32: 0.197506 | J32: 4.867098 | K32: 11.1494907 | M32: -1 | P32: 1 | Q32: 0.204159 | R32: 4.8687475 | S32: Up-Load | T32: 5.054349844 | U32: 0.03444822992
A33: -0.00484 | B33: 0.000688 | C33: =IF(B33>1,IF(B33=MAX(B28:B38),IF(SUM(C$2:C31)>0,MAX(C$2:C31)+1,1),""),"") ->  | D33: =IF(C33=MAX(C33:$C$3000)-2,"Start","") ->  | F33: 0.270964 | G33: -5.759283 | I33: 0.270964 | J33: 5.759283 | K33: 20.16644659 | Q33: 0.277617 | R33: 5.7609325 | S33: Up-Load | T33: 6.278824194 | U33: 0.2682118062
A34: -0.003483 | B34: 0.000344 | C34: =IF(B34>1,IF(B34=MAX(B29:B39),IF(SUM(C$2:C32)>0,MAX(C$2:C32)+1,1),""),"") ->  | D34: =IF(C34=MAX(C34:$C$3000)-2,"Start","") ->  | F34: 0.284597 | G34: -6.623414 | I34: 0.284597 | J34: 6.623414 | K34: 59.13788678 | Q34: 0.29125 | R34: 6.6250635 | S34: Up-Load | T34: 6.489054259 | U34: 0.01849851355
A35: -0.00351 | B35: 0.000143 | C35: =IF(B35>1,IF(B35=MAX(B30:B40),IF(SUM(C$2:C33)>0,MAX(C$2:C33)+1,1),""),"") ->  | D35: =IF(C35=MAX(C35:$C$3000)-2,"Start","") ->  | F35: 0.299792 | G35: -7.46411 | I35: 0.299792 | J35: 7.46411 | K35: 141.27331 | Q35: 0.306445 | R35: 7.4657595 | S35: Up-Load | T35: 6.717463731 | U35: 0.5599465585
A36: -0.002537 | B36: 0.000215 | C36: =IF(B36>1,IF(B36=MAX(B31:B41),IF(SUM(C$2:C34)>0,MAX(C$2:C34)+1,1),""),"") ->  | D36: =IF(C36=MAX(C36:$C$3000)-2,"Start","") ->  | F36: 0.296298 | G36: -8.276453 | I36: 0.296298 | J36: 8.276453 | K36: 16.34335502 | Q36: 0.302951 | R36: 8.2781025 | S36: Up-Load | T36: 6.665485496 | U36: 2.600533602
A37: -0.003611 | B37: 0.000617 | C37: =IF(B37>1,IF(B37=MAX(B32:B42),IF(SUM(C$2:C35)>0,MAX(C$2:C35)+1,1),""),"") ->  | D37: =IF(C37=MAX(C37:$C$3000)-2,"Start","") ->  | F37: 0.396948 | G37: -9.051965 | I37: 0.396948 | J37: 9.051965 | K37: 2.484279117 | Q37: 0.403601 | R37: 9.0536145 | S37: Up-Load | T37: 8.041120168 | U37: 1.025144772
A38: -0.003231 | B38: 1.434195e-05 | C38: =IF(B38>1,IF(B38=MAX(B33:B43),IF(SUM(C$2:C36)>0,MAX(C$2:C36)+1,1),""),"") ->  | D38: =IF(C38=MAX(C38:$C$3000)-2,"Start","") ->  | F38: 0.907396 | G38: -9.794591 | I38: 0.907396 | J38: 9.794591 | K38: 4.040331882 | Q38: 0.914049 | R38: 9.7962405 | S38: Up-Load | T38: 12.23513446 | U38: 5.948203727
A39: -0.004458 | B39: -0.000459 | C39: =IF(B39>1,IF(B39=MAX(B34:B44),IF(SUM(C$2:C37)>0,MAX(C$2:C37)+1,1),""),"") ->  | D39: =IF(C39=MAX(C39:$C$3000)-2,"Start","") ->  | F39: 0.755027 | G39: -10.498723 | I39: 0.755027 | J39: 10.498723 | K39: -5.321705638 | Q39: 0.76168 | R39: 10.5003725 | S39: Up-Load | T39: 11.35123009 | U39: 0.7239586425
A40: -0.004161 | B40: 0.000717 | C40: =IF(B40>1,IF(B40=MAX(B35:B45),IF(SUM(C$2:C38)>0,MAX(C$2:C38)+1,1),""),"") ->  | D40: =IF(C40=MAX(C40:$C$3000)-2,"Start","") ->  | F40: 0.65114 | G40: -11.15831 | I40: 0.65114 | J40: 11.15831 | K40: 5.453725849 | Q40: 0.657793 | R40: 11.1599595 | S40: Up-Load | T40: 10.59619398 | U40: 0.3178315588
A41: -0.004175 | B41: -0.000846 | C41: =IF(B41>1,IF(B41=MAX(B36:B46),IF(SUM(C$2:C39)>0,MAX(C$2:C39)+1,1),""),"") ->  | D41: =IF(C41=MAX(C41:$C$3000)-2,"Start","") ->  | F41: 0.989175 | G41: -11.775702 | I41: 0.989175 | J41: 11.775702 | K41: 4.094665978 | Q41: 0.995828 | R41: 11.7773515 | S41: Up-Load | T41: 12.61982871 | U41: 0.7097678528
A42: -0.004413 | B42: 4.302585e-05 | C42: =IF(B42>1,IF(B42=MAX(B37:B47),IF(SUM(C$2:C40)>0,MAX(C$2:C40)+1,1),""),"") ->  | D42: =IF(C42=MAX(C42:$C$3000)-2,"Start","") ->  | F42: 0.94154 | G42: -12.347401 | I42: 0.94154 | J42: 12.347401 | K42: 5.760458504 | Q42: 0.948193 | R42: 12.3490505 | S42: Up-Load | T42: 12.40255309 | U42: 0.002862526749
A43: -0.004154 | B43: 0.000531 | C43: =IF(B43>1,IF(B43=MAX(B38:B48),IF(SUM(C$2:C41)>0,MAX(C$2:C41)+1,1),""),"") ->  | D43: =IF(C43=MAX(C43:$C$3000)-2,"Start","") ->  | F43: 1.178399 | G43: -12.865719 | I43: 1.178399 | J43: 12.865719 | K43: 3.247290456 | Q43: 1.185052 | R43: 12.8673685 | S43: Up-Load | T43: 13.32261812 | U43: 0.2072522141
A44: -0.00397 | B44: 0.000688 | C44: =IF(B44>1,IF(B44=MAX(B39:B49),IF(SUM(C$2:C42)>0,MAX(C$2:C42)+1,1),""),"") ->  | D44: =IF(C44=MAX(C44:$C$3000)-2,"Start","") ->  | F44: 1.245927 | G44: -13.335834 | I44: 1.245927 | J44: 13.335834 | K44: 4.249397694 | Q44: 1.25258 | R44: 13.3374835 | S44: Up-Load | T44: 13.52157794 | U44: 0.03389076234
A45: -0.004201 | B45: -0.000947 | C45: =IF(B45>1,IF(B45=MAX(B40:B50),IF(SUM(C$2:C43)>0,MAX(C$2:C43)+1,1),""),"") ->  | D45: =IF(C45=MAX(C45:$C$3000)-2,"Start","") ->  | F45: 1.387595 | G45: -13.754676 | I45: 1.387595 | J45: 13.754676 | K45: 3.569443621 | Q45: 1.394248 | R45: 13.7563255 | S45: Up-Load | T45: 13.86906507 | U45: 0.01271021115
A46: -0.00317 | B46: 1.434195e-05 | C46: =IF(B46>1,IF(B46=MAX(B41:B51),IF(SUM(C$2:C44)>0,MAX(C$2:C44)+1,1),""),"") ->  | D46: =IF(C46=MAX(C46:$C$3000)-2,"Start","") ->  | F46: 1.46522 | G46: -14.118588 | I46: 1.46522 | J46: 14.118588 | K46: 3.625087725 | Q46: 1.471873 | R46: 14.1202375 | S46: Up-Load | T46: 14.02555657 | U46: 0.008964477882
A47: -0.004989 | B47: -0.000229 | C47: =IF(B47>1,IF(B47=MAX(B42:B52),IF(SUM(C$2:C45)>0,MAX(C$2:C45)+1,1),""),"") ->  | D47: =IF(C47=MAX(C47:$C$3000)-2,"Start","") ->  | F47: 1.572833 | G47: -14.42618 | I47: 1.572833 | J47: 14.42618 | K47: 3.163212243 | Q47: 1.579486 | R47: 14.4278295 | S47: Up-Load | T47: 14.20980034 | U47: 0.04753671677
A48: -0.005311 | B48: -0.001233 | C48: =IF(B48>1,IF(B48=MAX(B43:B53),IF(SUM(C$2:C46)>0,MAX(C$2:C46)+1,1),""),"") ->  | D48: =IF(C48=MAX(C48:$C$3000)-2,"Start","") ->  | F48: 1.640599 | G48: -14.673349 | I48: 1.640599 | J48: 14.673349 | K48: 4.225716607 | Q48: 1.647252 | R48: 14.6749985 | S48: Up-Load | T48: 14.30903422 | U48: 0.1339298516
A49: -0.004769 | B49: 0.000846 | C49: =IF(B49>1,IF(B49=MAX(B44:B54),IF(SUM(C$2:C47)>0,MAX(C$2:C47)+1,1),""),"") ->  | D49: =IF(C49=MAX(C49:$C$3000)-2,"Start","") ->  | F49: 1.676237 | G49: -14.863136 | I49: 1.676237 | J49: 14.863136 | K49: 2.946346875 | Q49: 1.68289 | R49: 14.8647855 | S49: Up-Load | T49: 14.35663177 | U49: 0.2582202131
A50: -0.003527 | B50: 0.000746 | C50: =IF(B50>1,IF(B50=MAX(B45:B55),IF(SUM(C$2:C48)>0,MAX(C$2:C48)+1,1),""),"") ->  | D50: =IF(C50=MAX(C50:$C$3000)-2,"Start","") ->  | F50: 1.74967 | G50: -14.99471 | I50: 1.74967 | J50: 14.99471 | K50: 3.39681241 | Q50: 1.756323 | R50: 14.9963595 | S50: Up-Load | T50: 14.44572156 | U50: 0.303202136
A51: -0.002973 | B51: -0.000531 | C51: =IF(B51>1,IF(B51=MAX(B46:B56),IF(SUM(C$2:C49)>0,MAX(C$2:C49)+1,1),""),"") ->  | D51: =IF(C51=MAX(C51:$C$3000)-2,"Start","") ->  | F51: 1.737349 | G51: -15.070722 | I51: 1.737349 | J51: 15.070722 | K51: -170.6188748 | Q51: 1.744002 | R51: 15.0723715 | S51: Up-Load | T51: 14.43157112 | U51: 0.4106251241
A52: -0.004861 | B52: 0.000129 | C52: =IF(B52>1,IF(B52=MAX(B47:B57),IF(SUM(C$2:C50)>0,MAX(C$2:C50)+1,1),""),"") ->  | D52: =IF(C52=MAX(C52:$C$3000)-2,"Start","") ->  | F52: 1.749119 | G52: -15.088721 | I52: 1.749119 | J52: 15.088721 | K52: -0.530071407 | Q52: 1.755772 | R52: 15.0903705 | S52: Up-Unload | T52: 14.57084266 | U52: 0.2699091778
A53: -0.003529 | B53: 0.00142 | C53: =IF(B53>1,IF(B53=MAX(B48:B58),IF(SUM(C$2:C51)>0,MAX(C$2:C51)+1,1),""),"") ->  | D53: =IF(C53=MAX(C53:$C$3000)-2,"Start","") ->  | F53: 1.757235 | G53: -15.060181 | I53: 1.757235 | J53: 15.060181 | K53: 1.139834398 | Q53: 1.763888 | R53: 15.0618305 | S53: Up-Unload | T53: 14.57592047 | U53: 0.2361085539
A54: -0.004154 | B54: 0.001248 | C54: =IF(B54>1,IF(B54=MAX(B49:B59),IF(SUM(C$2:C52)>0,MAX(C$2:C52)+1,1),""),"") ->  | D54: =IF(C54=MAX(C54:$C$3000)-2,"Start","") ->  | F54: 1.642357 | G54: -14.96703 | I54: 1.642357 | J54: 14.96703 | K54: 2.67865046 | Q54: 1.64901 | R54: 14.9686795 | S54: Up-Unload | T54: 14.49530767 | U54: 0.2240808928
A55: -0.00327 | B55: -0.000373 | C55: =IF(B55>1,IF(B55=MAX(B50:B60),IF(SUM(C$2:C53)>0,MAX(C$2:C53)+1,1),""),"") ->  | D55: =IF(C55=MAX(C55:$C$3000)-2,"Start","") ->  | F55: 1.663692 | G55: -14.809612 | I55: 1.663692 | J55: 14.809612 | K55: 3.018788556 | Q55: 1.670345 | R55: 14.8112615 | S55: Up-Unload | T55: 14.51178855 | U55: 0.08968404919
A56: -0.003854 | B56: 0.000287 | C56: =IF(B56>1,IF(B56=MAX(B51:B61),IF(SUM(C$2:C54)>0,MAX(C$2:C54)+1,1),""),"") ->  | D56: =IF(C56=MAX(C56:$C$3000)-2,"Start","") ->  | F56: 1.518026 | G56: -14.591701 | I56: 1.518026 | J56: 14.591701 | K56: 2.183284188 | Q56: 1.524679 | R56: 14.5933505 | S56: Up-Unload | T56: 14.38304766 | U56: 0.04422728639
A57: -0.003826 | B57: -0.000875 | C57: =IF(B57>1,IF(B57=MAX(B52:B62),IF(SUM(C$2:C55)>0,MAX(C$2:C55)+1,1),""),"") ->  | D57: =IF(C57=MAX(C57:$C$3000)-2,"Start","") ->  | F57: 1.435118 | G57: -14.31057 | I57: 1.435118 | J57: 14.31057 | K57: 3.340474582 | Q57: 1.441771 | R57: 14.3122195 | S57: Up-Unload | T57: 14.29009862 | U57: 0.000489333524
A58: -0.003736 | B58: -4.302585e-05 | C58: =IF(B58>1,IF(B58=MAX(B53:B63),IF(SUM(C$2:C56)>0,MAX(C$2:C56)+1,1),""),"") ->  | D58: =IF(C58=MAX(C58:$C$3000)-2,"Start","") ->  | F58: 1.331504 | G58: -13.968629 | I58: 1.331504 | J58: 13.968629 | K58: 3.090721086 | Q58: 1.338157 | R58: 13.9702785 | S58: Up-Unload | T58: 14.14864948 | U58: 0.0318162058
A59: -0.003696 | B59: 0.000272 | C59: =IF(B59>1,IF(B59=MAX(B54:B64),IF(SUM(C$2:C57)>0,MAX(C$2:C57)+1,1),""),"") ->  | D59: =IF(C59=MAX(C59:$C$3000)-2,"Start","") ->  | F59: 1.197213 | G59: -13.575272 | I59: 1.197213 | J59: 13.575272 | K59: 3.112843866 | Q59: 1.203866 | R59: 13.5769215 | S59: Up-Unload | T59: 13.91286535 | U59: 0.1128582737
A60: -0.004466 | B60: -0.000301 | C60: =IF(B60>1,IF(B60=MAX(B55:B65),IF(SUM(C$2:C58)>0,MAX(C$2:C58)+1,1),""),"") ->  | D60: =IF(C60=MAX(C60:$C$3000)-2,"Start","") ->  | F60: 1.062504 | G60: -13.131274 | I60: 1.062504 | J60: 13.131274 | K60: 4.088794522 | Q60: 1.069157 | R60: 13.1329235 | S60: Up-Unload | T60: 13.59897163 | U60: 0.2172008619
A61: -0.005486 | B61: 8.60517e-05 | C61: =IF(B61>1,IF(B61=MAX(B56:B66),IF(SUM(C$2:C59)>0,MAX(C$2:C59)+1,1),""),"") ->  | D61: =IF(C61=MAX(C61:$C$3000)-2,"Start","") ->  | F61: 0.966906 | G61: -12.633594 | I61: 0.966906 | J61: 12.633594 | K61: 3.800793232 | Q61: 0.973559 | R61: 12.6352435 | S61: Up-Unload | T61: 13.3156081 | U61: 0.4628959931
A62: -0.00458 | B62: -0.000588 | C62: =IF(B62>1,IF(B62=MAX(B57:B67),IF(SUM(C$2:C60)>0,MAX(C$2:C60)+1,1),""),"") ->  | D62: =IF(C62=MAX(C62:$C$3000)-2,"Start","") ->  | F62: 0.787679 | G62: -12.086721 | I62: 0.787679 | J62: 12.086721 | K62: 4.427532947 | Q62: 0.794332 | R62: 12.0883705 | S62: Up-Unload | T62: 12.60323412 | U62: 0.2650845492
A63: -0.005793 | B63: 0.000488 | C63: =IF(B63>1,IF(B63=MAX(B58:B68),IF(SUM(C$2:C61)>0,MAX(C$2:C61)+1,1),""),"") ->  | D63: =IF(C63=MAX(C63:$C$3000)-2,"Start","") ->  | F63: 0.708837 | G63: -11.490985 | I63: 0.708837 | J63: 11.490985 | K63: 5.816975828 | Q63: 0.71549 | R63: 11.4926345 | S63: Up-Unload | T63: 12.19406346 | U63: 0.4920025905
A64: -0.003736 | B64: 0.001707 | C64: =IF(B64>1,IF(B64=MAX(B59:B69),IF(SUM(C$2:C62)>0,MAX(C$2:C62)+1,1),""),"") ->  | D64: =IF(C64=MAX(C64:$C$3000)-2,"Start","") ->  | F64: 0.57533 | G64: -10.851492 | I64: 0.57533 | J64: 10.851492 | K64: 5.321632166 | Q64: 0.581983 | R64: 10.8531415 | S64: Up-Unload | T64: 11.32589318 | U64: 0.2234941469
A65: -0.005109 | B65: -0.001276 | C65: =IF(B65>1,IF(B65=MAX(B60:B70),IF(SUM(C$2:C63)>0,MAX(C$2:C63)+1,1),""),"") ->  | D65: =IF(C65=MAX(C65:$C$3000)-2,"Start","") ->  | F65: 0.46097 | G65: -10.171928 | I65: 0.46097 | J65: 10.171928 | K65: 7.255064452 | Q65: 0.467623 | R65: 10.1735775 | S65: Up-Unload | T65: 10.36151211 | U65: 0.03531941775
A66: -0.0036 | B66: 0.000817 | C66: =IF(B66>1,IF(B66=MAX(B61:B71),IF(SUM(C$2:C64)>0,MAX(C$2:C64)+1,1),""),"") ->  | D66: =IF(C66=MAX(C66:$C$3000)-2,"Start","") ->  | F66: 0.382861 | G66: -9.455117 | I66: 0.382861 | J66: 9.455117 | K66: 8.522343268 | Q66: 0.389514 | R66: 9.4567665 | S66: Up-Unload | T66: 9.556025307 | U66: 0.009852310861
A67: -0.002924 | B67: 0.000129 | C67: =IF(B67>1,IF(B67=MAX(B62:B72),IF(SUM(C$2:C65)>0,MAX(C$2:C65)+1,1),""),"") ->  | D67: =IF(C67=MAX(C67:$C$3000)-2,"Start","") ->  | F67: 0.288032 | G67: -8.698091 | I67: =F67 -> 0.288032 | J67: =-G67 -> 8.698091 | K67: 8.940900406 | Q67: =I67+N$7 -> 0.294685 | R67: =J67+O$7 -> 8.6997405 | S67: =IF(R67=MAX(R66:R68),"Up-Unload",IF(R67=MIN(R66:R68),"Down-Unload",IF(R66>0,IF(R67<0,"Down-Load",S66),IF(R66<0,IF(R67>0,"Up-Load",S66),S66)))) -> Up-Unload | T67: =IF(S67="Down-Unload",$X$2+$Y$2*EXP($Z$2*Q67),IF(S67="Up-Load",$X$3+$Y$3*EXP($Z$3*Q67),IF(S67="Up-Unload",$X$4+$Y$4*EXP($Z$4*Q67),IF(S67="Down-Load",$X$5+$Y$5*EXP($Z$5*Q67),"")))) -> 8.382351178 | U67: =(R67-T67)^2 -> 0.1007359816
A68: -0.004061 | B68: 0.000215 | C68: =IF(B68>1,IF(B68=MAX(B63:B73),IF(SUM(C$2:C66)>0,MAX(C$2:C66)+1,1),""),"") ->  | D68: =IF(C68=MAX(C68:$C$3000)-2,"Start","") ->  | F68: 0.209628 | G68: -7.906258 | I68: 0.209628 | J68: 7.906258 | K68: 13.70853226 | P68: =IF(R67<$O$10,IF(R68>$O$10,1,""),IF(R68=$O$9,1,"")) ->  | Q68: 0.216281 | R68: 7.9079075 | S68: Up-Unload | T68: 7.218576218 | U68: 0.4751776167
A69: -0.004452 | B69: -0.001248 | C69: =IF(B69>1,IF(B69=MAX(B64:B74),IF(SUM(C$2:C67)>0,MAX(C$2:C67)+1,1),""),"") ->  | D69: =IF(C69=MAX(C69:$C$3000)-2,"Start","") ->  | F69: 0.170314 | G69: -7.08435 | I69: 0.170314 | J69: 7.08435 | K69: =(J70-J68)/(I70-I68) -> 16.83081998 | Q69: 0.176967 | R69: 7.0859995 | S69: Up-Unload | T69: 6.558648694 | U69: 0.2780988726
A70: -0.003755 | B70: 0.000602 | C70: =IF(B70>1,IF(B70=MAX(B65:B75),IF(SUM(C$2:C68)>0,MAX(C$2:C68)+1,1),""),"") ->  | D70: =IF(C70=MAX(C70:$C$3000)-2,"Start","") ->  | F70: 0.110491 | G70: -6.237701 | I70: 0.110491 | J70: 6.237701 | K70: 14.41921394 | Q70: 0.117144 | R70: 6.2393505 | S70: Up-Unload | T70: 5.443643314 | U70: 0.6331499257
A71: -0.003653 | B71: 1.434195e-05 | C71: =IF(B71>1,IF(B71=MAX(B66:B76),IF(SUM(C$2:C69)>0,MAX(C$2:C69)+1,1),""),"") ->  | D71: =IF(C71=MAX(C71:$C$3000)-2,"Start","") ->  | F71: 0.050578 | G71: -5.357851 | I71: 0.050578 | J71: 5.357851 | K71: 31.28189242 | Q71: 0.057231 | R71: 5.3595005 | S71: Up-Unload | T71: 4.177043154 | U71: 1.398205376
A72: -0.003172 | B72: 0.000688 | C72: =IF(B72>1,IF(B72=MAX(B67:B77),IF(SUM(C$2:C70)>0,MAX(C$2:C70)+1,1),""),"") ->  | D72: =IF(C72=MAX(C72:$C$3000)-2,"Start","") ->  | F72: 0.053675 | G72: -4.460389 | I72: 0.053675 | J72: 4.460389 | K72: 51.2590958 | Q72: 0.060328 | R72: 4.4620385 | S72: Up-Unload | T72: 4.24650284 | U72: 0.04645562083
A73: -0.004499 | B73: -0.000932 | C73: =IF(B73>1,IF(B73=MAX(B68:B78),IF(SUM(C$2:C71)>0,MAX(C$2:C71)+1,1),""),"") ->  | D73: =IF(C73=MAX(C73:$C$3000)-2,"Start","") ->  | F73: 0.015232 | G73: -3.546047 | I73: 0.015232 | J73: 3.546047 | K73: 28.76204753 | Q73: 0.021885 | R73: 3.5476965 | S73: Up-Unload | T73: 3.351392593 | U73: 0.03853522396
A74: -0.003779 | B74: -4.302585e-05 | C74: =IF(B74>1,IF(B74=MAX(B69:B79),IF(SUM(C$2:C72)>0,MAX(C$2:C72)+1,1),""),"") ->  | D74: =IF(C74=MAX(C74:$C$3000)-2,"Start","") ->  | F74: -0.010363 | G74: -2.618525 | I74: -0.010363 | J74: 2.618525 | K74: 51.80364575 | Q74: -0.00371 | R74: 2.6201745 | S74: Up-Unload | T74: 2.713998228 | U74: 0.008802892001
A75: -0.003882 | B75: -2.86839e-05 | C75: =IF(B75>1,IF(B75=MAX(B70:B80),IF(SUM(C$2:C73)>0,MAX(C$2:C73)+1,1),""),"") ->  | D75: =IF(C75=MAX(C75:$C$3000)-2,"Start","") ->  | F75: -0.02081 | G75: -1.67894 | I75: -0.02081 | J75: 1.67894 | K75: 91.35901409 | Q75: -0.014157 | R75: 1.6805895 | S75: Up-Unload | T75: 2.443808417 | U75: 0.5825031153
A76: -0.001965 | B76: 0.000932 | C76: =IF(B76>1,IF(B76=MAX(B71:B81),IF(SUM(C$2:C74)>0,MAX(C$2:C74)+1,1),""),"") ->  | D76: =IF(C76=MAX(C76:$C$3000)-2,"Start","") ->  | F76: -0.031014 | G76: -0.73187 | I76: -0.031014 | J76: 0.73187 | K76: 46.61256828 | Q76: -0.024361 | R76: 0.7335195 | S76: Up-Unload | T76: 2.174107071 | U76: 2.075292549
A77: -0.004234 | B77: -0.000688 | C77: =IF(B77>1,IF(B77=MAX(B72:B82),IF(SUM(C$2:C75)>0,MAX(C$2:C75)+1,1),""),"") ->  | D77: =IF(C77=MAX(C77:$C$3000)-2,"Start","") ->  | F77: -0.061452 | G77: 0.215488 | I77: -0.061452 | J77: -0.215488 | K77: 34.01351376 | Q77: -0.054799 | R77: -0.2138385 | S77: Down-Load | T77: -0.9233982409 | U77: 0.5034750258
A78: -0.004598 | B78: -0.000817 | C78: =IF(B78>1,IF(B78=MAX(B73:B83),IF(SUM(C$2:C76)>0,MAX(C$2:C76)+1,1),""),"") ->  | D78: =IF(C78=MAX(C78:$C$3000)-2,"Start","") ->  | F78: -0.086661 | G78: 1.16088 | I78: -0.086661 | J78: -1.16088 | K78: 46.4932228 | Q78: -0.080008 | R78: -1.1592305 | S78: Down-Load | T78: -1.638547517 | U78: 0.229744803
A79: -0.002968 | B79: 0.000502 | C79: =IF(B79>1,IF(B79=MAX(B74:B84),IF(SUM(C$2:C77)>0,MAX(C$2:C77)+1,1),""),"") ->  | D79: =IF(C79=MAX(C79:$C$3000)-2,"Start","") ->  | F79: -0.102103 | G79: 2.105484 | I79: -0.102103 | J79: -2.105484 | K79: 47.99048712 | Q79: -0.09545 | R79: -2.1038345 | S79: Down-Load | T79: -2.058619192 | U79: 0.002044424066
A80: -0.004663 | B80: 0.000516 | C80: =IF(B80>1,IF(B80=MAX(B75:B85),IF(SUM(C$2:C78)>0,MAX(C$2:C78)+1,1),""),"") ->  | D80: =IF(C80=MAX(C80:$C$3000)-2,"Start","") ->  | F80: -0.125871 | G80: 3.042587 | I80: -0.125871 | J80: -3.042587 | K80: 35.09591501 | Q80: -0.119218 | R80: -3.0409375 | S80: Down-Load | T80: -2.679619302 | U80: 0.1305508403
A81: -0.002743 | B81: -0.000889 | C81: =IF(B81>1,IF(B81=MAX(B76:B86),IF(SUM(C$2:C79)>0,MAX(C$2:C79)+1,1),""),"") ->  | D81: =IF(C81=MAX(C81:$C$3000)-2,"Start","") ->  | F81: -0.155004 | G81: 3.962093 | I81: -0.155004 | J81: -3.962093 | K81: 21.51858349 | Q81: -0.148351 | R81: -3.9604435 | S81: Down-Load | T81: -3.400450601 | U81: 0.3135920468
A82: -0.004954 | B82: 0.000215 | C82: =IF(B82>1,IF(B82=MAX(B77:B87),IF(SUM(C$2:C80)>0,MAX(C$2:C80)+1,1),""),"") ->  | D82: =IF(C82=MAX(C82:$C$3000)-2,"Start","") ->  | F82: -0.210812 | G82: 4.870397 | I82: -0.210812 | J82: -4.870397 | K82: 23.11743631 | M82: 1 | Q82: -0.204159 | R82: -4.8687475 | S82: Down-Load | T82: -4.666087507 | U82: 0.04107107273
A83: -0.004001 | B83: -2.86839e-05 | C83: =IF(B83>1,IF(B83=MAX(B78:B88),IF(SUM(C$2:C81)>0,MAX(C$2:C81)+1,1),""),"") ->  | D83: =IF(C83=MAX(C83:$C$3000)-2,"Start","") ->  | F83: -0.232876 | G83: 5.762294 | I83: -0.232876 | J83: -5.762294 | K83: 19.67800076 | Q83: -0.226223 | R83: -5.7606445 | S83: Down-Load | T83: -5.127669057 | U83: 0.4006579118
A84: -0.003058 | B84: -0.000488 | C84: =IF(B84>1,IF(B84=MAX(B79:B89),IF(SUM(C$2:C82)>0,MAX(C$2:C82)+1,1),""),"") ->  | D84: =IF(C84=MAX(C84:$C$3000)-2,"Start","") ->  | F84: -0.300306 | G84: 6.63146 | I84: -0.300306 | J84: -6.63146 | K84: 12.17913806 | Q84: -0.293653 | R84: -6.6298105 | S84: Down-Load | T84: -6.414975789 | U84: 0.04615395306
A85: -0.004528 | B85: 0.000502 | C85: =IF(B85>1,IF(B85=MAX(B80:B90),IF(SUM(C$2:C83)>0,MAX(C$2:C83)+1,1),""),"") ->  | D85: =IF(C85=MAX(C85:$C$3000)-2,"Start","") ->  | F85: -0.373304 | G85: 7.472586 | I85: -0.373304 | J85: -7.472586 | K85: 11.92953059 | Q85: -0.366651 | R85: -7.4709365 | S85: Down-Load | T85: -7.62101226 | U85: 0.02252273377
A86: -0.003555 | B86: -0.000344 | C86: =IF(B86>1,IF(B86=MAX(B81:B91),IF(SUM(C$2:C84)>0,MAX(C$2:C84)+1,1),""),"") ->  | D86: =IF(C86=MAX(C86:$C$3000)-2,"Start","") ->  | F86: -0.43882 | G86: 8.283867 | I86: -0.43882 | J86: -8.283867 | K86: 9.358607138 | Q86: -0.432167 | R86: -8.2822175 | S86: Down-Load | T86: -8.559296154 | U86: 0.07677258034
A87: -0.004073 | B87: -0.000129 | C87: =IF(B87>1,IF(B87=MAX(B82:B92),IF(SUM(C$2:C85)>0,MAX(C$2:C85)+1,1),""),"") ->  | D87: =IF(C87=MAX(C87:$C$3000)-2,"Start","") ->  | F87: -0.542768 | G87: 9.058533 | I87: -0.542768 | J87: -9.058533 | K87: 9.385937442 | Q87: -0.536115 | R87: -9.0568835 | S87: Down-Load | T87: -9.810910679 | U87: 0.5685569873
A88: -0.003844 | B88: -0.00043 | C88: =IF(B88>1,IF(B88=MAX(B83:B93),IF(SUM(C$2:C86)>0,MAX(C$2:C86)+1,1),""),"") ->  | D88: =IF(C88=MAX(C88:$C$3000)-2,"Start","") ->  | F88: -0.600398 | G88: 9.800428 | I88: -0.600398 | J88: -9.800428 | K88: 38.85387931 | Q88: -0.593745 | R88: -9.7987785 | S88: Down-Load | T88: -10.397622 | U88: 0.3586135396
A89: -0.00345 | B89: -0.000316 | C89: =IF(B89>1,IF(B89=MAX(B84:B94),IF(SUM(C$2:C87)>0,MAX(C$2:C87)+1,1),""),"") ->  | D89: =IF(C89=MAX(C89:$C$3000)-2,"Start","") ->  | F89: -0.579888 | G89: 10.500789 | I89: -0.579888 | J89: -10.500789 | K89: 1096.345937 | Q89: -0.573235 | R89: -10.4991395 | S89: Down-Load | T89: -10.19675528 | U89: 0.09143621561
A90: -0.003366 | B90: 0.000244 | C90: =IF(B90>1,IF(B90=MAX(B85:B95),IF(SUM(C$2:C88)>0,MAX(C$2:C88)+1,1),""),"") ->  | D90: =IF(C90=MAX(C90:$C$3000)-2,"Start","") ->  | F90: -0.601641 | G90: 11.163186 | I90: -0.601641 | J90: -11.163186 | K90: 3.907720896 | Q90: -0.594988 | R90: -11.1615365 | S90: Down-Load | T90: -10.40952475 | U90: 0.5655216781
A91: -0.004129 | B91: -0.00043 | C91: =IF(B91>1,IF(B91=MAX(B86:B96),IF(SUM(C$2:C89)>0,MAX(C$2:C89)+1,1),""),"") ->  | D91: =IF(C91=MAX(C91:$C$3000)-2,"Start","") ->  | F91: -0.907622 | G91: 11.781482 | I91: -0.907622 | J91: -11.781482 | K91: 1.890880419 | Q91: -0.900969 | R91: -11.7798325 | S91: Down-Load | T91: -12.58004115 | U91: 0.6403338756
A92: -0.00086 | B92: 0.000316 | C92: =IF(B92>1,IF(B92=MAX(B87:B97),IF(SUM(C$2:C90)>0,MAX(C$2:C90)+1,1),""),"") ->  | D92: =IF(C92=MAX(C92:$C$3000)-2,"Start","") ->  | F92: -1.230694 | G92: 12.35265 | I92: -1.230694 | J92: -12.35265 | K92: -12.09860246 | Q92: -1.224041 | R92: -12.3510005 | S92: Down-Load | T92: -13.78091229 | U92: 2.044647741
A93: -0.005745 | B93: -0.000172 | C93: =IF(B93>1,IF(B93=MAX(B88:B98),IF(SUM(C$2:C91)>0,MAX(C$2:C91)+1,1),""),"") ->  | D93: =IF(C93=MAX(C93:$C$3000)-2,"Start","") ->  | F93: -0.817249 | G93: 12.874869 | I93: -0.817249 | J93: -12.874869 | K93: -32.74496357 | Q93: -0.810596 | R93: -12.8732195 | S93: Down-Load | T93: -12.07435348 | U93: 0.6381869177
A94: -0.004937 | B94: 0.000445 | C94: =IF(B94>1,IF(B94=MAX(B89:B99),IF(SUM(C$2:C92)>0,MAX(C$2:C92)+1,1),""),"") ->  | D94: =IF(C94=MAX(C94:$C$3000)-2,"Start","") ->  | F94: -1.200365 | G94: 13.345772 | I94: -1.200365 | J94: -13.345772 | K94: 2.389415245 | Q94: -1.193712 | R94: -13.3441225 | S94: Down-Load | T94: -13.69904014 | U94: 0.1259665284
A95: -0.003684 | B95: -0.00043 | C95: =IF(B95>1,IF(B95=MAX(B90:B100),IF(SUM(C$2:C93)>0,MAX(C$2:C93)+1,1),""),"") ->  | D95: =IF(C95=MAX(C95:$C$3000)-2,"Start","") ->  | F95: -1.187404 | G95: 13.759323 | I95: -1.187404 | J95: -13.759323 | K95: 5.14803327 | Q95: -1.180751 | R95: -13.7576735 | S95: Down-Load | T95: -13.66246125 | U95: 0.009065373336
A96: -0.004444 | B96: -0.000588 | C96: =IF(B96>1,IF(B96=MAX(B91:B101),IF(SUM(C$2:C94)>0,MAX(C$2:C94)+1,1),""),"") ->  | D96: =IF(C96=MAX(C96:$C$3000)-2,"Start","") ->  | F96: -1.35125 | G96: 14.122533 | I96: -1.35125 | J96: -14.122533 | K96: 3.218115582 | Q96: -1.344597 | R96: -14.1208835 | S96: Down-Load | T96: -14.06016267 | U96: 0.003687019215
A97: -0.003662 | B97: 0.000602 | C97: =IF(B97>1,IF(B97=MAX(B92:B102),IF(SUM(C$2:C95)>0,MAX(C$2:C95)+1,1),""),"") ->  | D97: =IF(C97=MAX(C97:$C$3000)-2,"Start","") ->  | F97: -1.394927 | G97: 14.427156 | I97: -1.394927 | J97: -14.427156 | K97: 2.895483069 | Q97: -1.388274 | R97: -14.4255065 | S97: Down-Load | T97: -14.14539339 | U97: 0.07846335183
A98: -0.004045 | B98: 0.00218 | C98: =IF(B98>1,IF(B98=MAX(B93:B103),IF(SUM(C$2:C96)>0,MAX(C$2:C96)+1,1),""),"") ->  | D98: =IF(C98=MAX(C98:$C$3000)-2,"Start","") ->  | F98: -1.541047 | G98: 14.672087 | I98: -1.541047 | J98: -14.672087 | K98: 2.430558207 | Q98: -1.534394 | R98: -14.6704375 | S98: Down-Load | T98: -14.38068942 | U98: 0.0839539484
A99: -0.003725 | B99: -0.000559 | C99: =IF(B99>1,IF(B99=MAX(B94:B104),IF(SUM(C$2:C97)>0,MAX(C$2:C97)+1,1),""),"") ->  | D99: =IF(C99=MAX(C99:$C$3000)-2,"Start","") ->  | F99: -1.573033 | G99: 14.860053 | I99: -1.573033 | J99: -14.860053 | K99: 4.640298336 | Q99: -1.56638 | R99: -14.8584035 | S99: Down-Load | T99: -14.42340676 | U99: 0.1892221653
A100: -0.005821 | B100: -7.170975e-05 | C100: =IF(B100>1,IF(B100=MAX(B95:B105),IF(SUM(C$2:C98)>0,MAX(C$2:C98)+1,1),""),"") ->  | D100: =IF(C100=MAX(C100:$C$3000)-2,"Start","") ->  | F100: -1.610499 | G100: 14.994365 | I100: -1.610499 | J100: -14.994365 | K100: 2.948134048 | Q100: -1.603846 | R100: -14.9927155 | S100: Down-Load | T100: -14.46999025 | U100: 0.2732416857
A101: -0.003127 | B101: -0.000645 | C101: =IF(B101>1,IF(B101=MAX(B96:B106),IF(SUM(C$2:C99)>0,MAX(C$2:C99)+1,1),""),"") ->  | D101: =IF(C101=MAX(C101:$C$3000)-2,"Start","") ->  | F101: -1.645007 | G101: 15.072242 | I101: -1.645007 | J101: -15.072242 | K101: 9.310384545 | Q101: -1.638354 | R101: -15.0705925
A102: -0.004512 | B102: 0.001477 | C102: =IF(B102>1,IF(B102=MAX(B97:B107),IF(SUM(C$2:C100)>0,MAX(C$2:C100)+1,1),""),"") ->  | D102: =IF(C102=MAX(C102:$C$3000)-2,"Start","") -> 
A103: -0.003673 | B103: 0.000287 | C103: =IF(B103>1,IF(B103=MAX(B98:B108),IF(SUM(C$2:C101)>0,MAX(C$2:C101)+1,1),""),"") ->  | D103: =IF(C103=MAX(C103:$C$3000)-2,"Start","") -> 
A104: -0.00374 | B104: -0.000459 | C104: =IF(B104>1,IF(B104=MAX(B99:B109),IF(SUM(C$2:C102)>0,MAX(C$2:C102)+1,1),""),"") ->  | D104: =IF(C104=MAX(C104:$C$3000)-2,"Start","") -> 
A105: -0.004687 | B105: 4.302585e-05 | C105: =IF(B105>1,IF(B105=MAX(B100:B110),IF(SUM(C$2:C103)>0,MAX(C$2:C103)+1,1),""),"") ->  | D105: =IF(C105=MAX(C105:$C$3000)-2,"Start","") -> 
A106: -0.003858 | B106: 4.302585e-05 | C106: =IF(B106>1,IF(B106=MAX(B101:B111),IF(SUM(C$2:C104)>0,MAX(C$2:C104)+1,1),""),"") ->  | D106: =IF(C106=MAX(C106:$C$3000)-2,"Start","") -> 
A107: -0.004091 | B107: 0.000115 | C107: =IF(B107>1,IF(B107=MAX(B102:B112),IF(SUM(C$2:C105)>0,MAX(C$2:C105)+1,1),""),"") ->  | D107: =IF(C107=MAX(C107:$C$3000)-2,"Start","") -> 
A108: -0.004033 | B108: -0.000588 | C108: =IF(B108>1,IF(B108=MAX(B103:B113),IF(SUM(C$2:C106)>0,MAX(C$2:C106)+1,1),""),"") ->  | D108: =IF(C108=MAX(C108:$C$3000)-2,"Start","") -> 
A109: -0.004279 | B109: 0.00033 | C109: =IF(B109>1,IF(B109=MAX(B104:B114),IF(SUM(C$2:C107)>0,MAX(C$2:C107)+1,1),""),"") ->  | D109: =IF(C109=MAX(C109:$C$3000)-2,"Start","") -> 
A110: -0.003442 | B110: 0.000947 | C110: =IF(B110>1,IF(B110=MAX(B105:B115),IF(SUM(C$2:C108)>0,MAX(C$2:C108)+1,1),""),"") ->  | D110: =IF(C110=MAX(C110:$C$3000)-2,"Start","") -> 
A111: -0.004558 | B111: -0.000717 | C111: =IF(B111>1,IF(B111=MAX(B106:B116),IF(SUM(C$2:C109)>0,MAX(C$2:C109)+1,1),""),"") ->  | D111: =IF(C111=MAX(C111:$C$3000)-2,"Start","") -> 
A112: -0.005061 | B112: -0.000416 | C112: =IF(B112>1,IF(B112=MAX(B107:B117),IF(SUM(C$2:C110)>0,MAX(C$2:C110)+1,1),""),"") ->  | D112: =IF(C112=MAX(C112:$C$3000)-2,"Start","") -> 
A113: -0.003817 | B113: 0.000215 | C113: =IF(B113>1,IF(B113=MAX(B108:B118),IF(SUM(C$2:C111)>0,MAX(C$2:C111)+1,1),""),"") ->  | D113: =IF(C113=MAX(C113:$C$3000)-2,"Start","") -> 
A114: -0.005209 | B114: -0.000602 | C114: =IF(B114>1,IF(B114=MAX(B109:B119),IF(SUM(C$2:C112)>0,MAX(C$2:C112)+1,1),""),"") ->  | D114: =IF(C114=MAX(C114:$C$3000)-2,"Start","") -> 
A115: -0.004155 | B115: -8.60517e-05 | C115: =IF(B115>1,IF(B115=MAX(B110:B120),IF(SUM(C$2:C113)>0,MAX(C$2:C113)+1,1),""),"") ->  | D115: =IF(C115=MAX(C115:$C$3000)-2,"Start","") -> 
A116: -0.00367 | B116: -0.000774 | C116: =IF(B116>1,IF(B116=MAX(B111:B121),IF(SUM(C$2:C114)>0,MAX(C$2:C114)+1,1),""),"") ->  | D116: =IF(C116=MAX(C116:$C$3000)-2,"Start","") -> 
A117: -0.003114 | B117: 0.001076 | C117: =IF(B117>1,IF(B117=MAX(B112:B122),IF(SUM(C$2:C115)>0,MAX(C$2:C115)+1,1),""),"") ->  | D117: =IF(C117=MAX(C117:$C$3000)-2,"Start","") -> 
A118: -0.003645 | B118: -0.000258 | C118: =IF(B118>1,IF(B118=MAX(B113:B123),IF(SUM(C$2:C116)>0,MAX(C$2:C116)+1,1),""),"") ->  | D118: =IF(C118=MAX(C118:$C$3000)-2,"Start","") -> 
A119: -0.004071 | B119: 0.001133 | C119: =IF(B119>1,IF(B119=MAX(B114:B124),IF(SUM(C$2:C117)>0,MAX(C$2:C117)+1,1),""),"") ->  | D119: =IF(C119=MAX(C119:$C$3000)-2,"Start","") -> 
A120: -0.003346 | B120: 0 | C120: =IF(B120>1,IF(B120=MAX(B115:B125),IF(SUM(C$2:C118)>0,MAX(C$2:C118)+1,1),""),"") ->  | D120: =IF(C120=MAX(C120:$C$3000)-2,"Start","") -> 
A121: -0.004466 | B121: -0.000229 | C121: =IF(B121>1,IF(B121=MAX(B116:B126),IF(SUM(C$2:C119)>0,MAX(C$2:C119)+1,1),""),"") ->  | D121: =IF(C121=MAX(C121:$C$3000)-2,"Start","") -> 
A122: -0.00338 | B122: 0.000574 | C122: =IF(B122>1,IF(B122=MAX(B117:B127),IF(SUM(C$2:C120)>0,MAX(C$2:C120)+1,1),""),"") ->  | D122: =IF(C122=MAX(C122:$C$3000)-2,"Start","") -> 
A123: -0.004513 | B123: -0.000143 | C123: =IF(B123>1,IF(B123=MAX(B118:B128),IF(SUM(C$2:C121)>0,MAX(C$2:C121)+1,1),""),"") ->  | D123: =IF(C123=MAX(C123:$C$3000)-2,"Start","") -> 
A124: -0.005937 | B124: 0.000904 | C124: =IF(B124>1,IF(B124=MAX(B119:B129),IF(SUM(C$2:C122)>0,MAX(C$2:C122)+1,1),""),"") ->  | D124: =IF(C124=MAX(C124:$C$3000)-2,"Start","") -> 
A125: -0.004584 | B125: -0.000488 | C125: =IF(B125>1,IF(B125=MAX(B120:B130),IF(SUM(C$2:C123)>0,MAX(C$2:C123)+1,1),""),"") ->  | D125: =IF(C125=MAX(C125:$C$3000)-2,"Start","") -> 
A126: -0.004139 | B126: 0.000344 | C126: =IF(B126>1,IF(B126=MAX(B121:B131),IF(SUM(C$2:C124)>0,MAX(C$2:C124)+1,1),""),"") ->  | D126: =IF(C126=MAX(C126:$C$3000)-2,"Start","") -> 
A127: -0.00243 | B127: 0.000502 | C127: =IF(B127>1,IF(B127=MAX(B122:B132),IF(SUM(C$2:C125)>0,MAX(C$2:C125)+1,1),""),"") ->  | D127: =IF(C127=MAX(C127:$C$3000)-2,"Start","") -> 
A128: -0.003458 | B128: -0.000143 | C128: =IF(B128>1,IF(B128=MAX(B123:B133),IF(SUM(C$2:C126)>0,MAX(C$2:C126)+1,1),""),"") ->  | D128: =IF(C128=MAX(C128:$C$3000)-2,"Start","") -> 
A129: -0.005331 | B129: -0.001535 | C129: =IF(B129>1,IF(B129=MAX(B124:B134),IF(SUM(C$2:C127)>0,MAX(C$2:C127)+1,1),""),"") ->  | D129: =IF(C129=MAX(C129:$C$3000)-2,"Start","") -> 
A130: -0.003092 | B130: 0.000861 | C130: =IF(B130>1,IF(B130=MAX(B125:B135),IF(SUM(C$2:C128)>0,MAX(C$2:C128)+1,1),""),"") ->  | D130: =IF(C130=MAX(C130:$C$3000)-2,"Start","") -> 
A131: -0.003284 | B131: 0.000272 | C131: =IF(B131>1,IF(B131=MAX(B126:B136),IF(SUM(C$2:C129)>0,MAX(C$2:C129)+1,1),""),"") ->  | D131: =IF(C131=MAX(C131:$C$3000)-2,"Start","") -> 
A132: -0.004046 | B132: 7.170975e-05 | C132: =IF(B132>1,IF(B132=MAX(B127:B137),IF(SUM(C$2:C130)>0,MAX(C$2:C130)+1,1),""),"") ->  | D132: =IF(C132=MAX(C132:$C$3000)-2,"Start","") -> 
A133: -0.003383 | B133: 0.001434 | C133: =IF(B133>1,IF(B133=MAX(B128:B138),IF(SUM(C$2:C131)>0,MAX(C$2:C131)+1,1),""),"") ->  | D133: =IF(C133=MAX(C133:$C$3000)-2,"Start","") -> 
A134: -0.004697 | B134: 0.000488 | C134: =IF(B134>1,IF(B134=MAX(B129:B139),IF(SUM(C$2:C132)>0,MAX(C$2:C132)+1,1),""),"") ->  | D134: =IF(C134=MAX(C134:$C$3000)-2,"Start","") -> 
A135: -0.004286 | B135: 0.001492 | C135: =IF(B135>1,IF(B135=MAX(B130:B140),IF(SUM(C$2:C133)>0,MAX(C$2:C133)+1,1),""),"") ->  | D135: =IF(C135=MAX(C135:$C$3000)-2,"Start","") -> 
A136: -0.004131 | B136: 4.302585e-05 | C136: =IF(B136>1,IF(B136=MAX(B131:B141),IF(SUM(C$2:C134)>0,MAX(C$2:C134)+1,1),""),"") ->  | D136: =IF(C136=MAX(C136:$C$3000)-2,"Start","") -> 
A137: -0.002632 | B137: -0.001219 | C137: =IF(B137>1,IF(B137=MAX(B132:B142),IF(SUM(C$2:C135)>0,MAX(C$2:C135)+1,1),""),"") ->  | D137: =IF(C137=MAX(C137:$C$3000)-2,"Start","") -> 
A138: -0.004048 | B138: 0.000602 | C138: =IF(B138>1,IF(B138=MAX(B133:B143),IF(SUM(C$2:C136)>0,MAX(C$2:C136)+1,1),""),"") ->  | D138: =IF(C138=MAX(C138:$C$3000)-2,"Start","") -> 
A139: -0.003451 | B139: -0.001176 | C139: =IF(B139>1,IF(B139=MAX(B134:B144),IF(SUM(C$2:C137)>0,MAX(C$2:C137)+1,1),""),"") ->  | D139: =IF(C139=MAX(C139:$C$3000)-2,"Start","") -> 
A140: -0.004418 | B140: 0 | C140: =IF(B140>1,IF(B140=MAX(B135:B145),IF(SUM(C$2:C138)>0,MAX(C$2:C138)+1,1),""),"") ->  | D140: =IF(C140=MAX(C140:$C$3000)-2,"Start","") -> 
A141: -0.003214 | B141: 0 | C141: =IF(B141>1,IF(B141=MAX(B136:B146),IF(SUM(C$2:C139)>0,MAX(C$2:C139)+1,1),""),"") ->  | D141: =IF(C141=MAX(C141:$C$3000)-2,"Start","") -> 
A142: -0.003555 | B142: 0.000158 | C142: =IF(B142>1,IF(B142=MAX(B137:B147),IF(SUM(C$2:C140)>0,MAX(C$2:C140)+1,1),""),"") ->  | D142: =IF(C142=MAX(C142:$C$3000)-2,"Start","") -> 
A143: -0.005373 | B143: 0.000645 | C143: =IF(B143>1,IF(B143=MAX(B138:B148),IF(SUM(C$2:C141)>0,MAX(C$2:C141)+1,1),""),"") ->  | D143: =IF(C143=MAX(C143:$C$3000)-2,"Start","") -> 
A144: -0.002682 | B144: 0.000301 | C144: =IF(B144>1,IF(B144=MAX(B139:B149),IF(SUM(C$2:C142)>0,MAX(C$2:C142)+1,1),""),"") ->  | D144: =IF(C144=MAX(C144:$C$3000)-2,"Start","") -> 
A145: -0.003229 | B145: 0.001506 | C145: =IF(B145>1,IF(B145=MAX(B140:B150),IF(SUM(C$2:C143)>0,MAX(C$2:C143)+1,1),""),"") ->  | D145: =IF(C145=MAX(C145:$C$3000)-2,"Start","") -> 
A146: -0.003895 | B146: 0.000445 | C146: =IF(B146>1,IF(B146=MAX(B141:B151),IF(SUM(C$2:C144)>0,MAX(C$2:C144)+1,1),""),"") ->  | D146: =IF(C146=MAX(C146:$C$3000)-2,"Start","") -> 
A147: -0.003332 | B147: 0.00109 | C147: =IF(B147>1,IF(B147=MAX(B142:B152),IF(SUM(C$2:C145)>0,MAX(C$2:C145)+1,1),""),"") ->  | D147: =IF(C147=MAX(C147:$C$3000)-2,"Start","") -> 
A148: -0.004834 | B148: 1.434195e-05 | C148: =IF(B148>1,IF(B148=MAX(B143:B153),IF(SUM(C$2:C146)>0,MAX(C$2:C146)+1,1),""),"") ->  | D148: =IF(C148=MAX(C148:$C$3000)-2,"Start","") -> 
A149: -0.004503 | B149: 5.73678e-05 | C149: =IF(B149>1,IF(B149=MAX(B144:B154),IF(SUM(C$2:C147)>0,MAX(C$2:C147)+1,1),""),"") ->  | D149: =IF(C149=MAX(C149:$C$3000)-2,"Start","") -> 
A150: -0.004979 | B150: -0.000416 | C150: =IF(B150>1,IF(B150=MAX(B145:B155),IF(SUM(C$2:C148)>0,MAX(C$2:C148)+1,1),""),"") ->  | D150: =IF(C150=MAX(C150:$C$3000)-2,"Start","") -> 
A151: -0.005333 | B151: 0.00076 | C151: =IF(B151>1,IF(B151=MAX(B146:B156),IF(SUM(C$2:C149)>0,MAX(C$2:C149)+1,1),""),"") ->  | D151: =IF(C151=MAX(C151:$C$3000)-2,"Start","") -> 
A152: -0.003682 | B152: 0.000975 | C152: =IF(B152>1,IF(B152=MAX(B147:B157),IF(SUM(C$2:C150)>0,MAX(C$2:C150)+1,1),""),"") ->  | D152: =IF(C152=MAX(C152:$C$3000)-2,"Start","") -> 
A153: -0.004172 | B153: -0.000645 | C153: =IF(B153>1,IF(B153=MAX(B148:B158),IF(SUM(C$2:C151)>0,MAX(C$2:C151)+1,1),""),"") ->  | D153: =IF(C153=MAX(C153:$C$3000)-2,"Start","") -> 
A154: -0.004031 | B154: 0.000961 | C154: =IF(B154>1,IF(B154=MAX(B149:B159),IF(SUM(C$2:C152)>0,MAX(C$2:C152)+1,1),""),"") ->  | D154: =IF(C154=MAX(C154:$C$3000)-2,"Start","") -> 
A155: -0.003815 | B155: 4.302585e-05 | C155: =IF(B155>1,IF(B155=MAX(B150:B160),IF(SUM(C$2:C153)>0,MAX(C$2:C153)+1,1),""),"") ->  | D155: =IF(C155=MAX(C155:$C$3000)-2,"Start","") -> 
A156: -0.003524 | B156: 0.000215 | C156: =IF(B156>1,IF(B156=MAX(B151:B161),IF(SUM(C$2:C154)>0,MAX(C$2:C154)+1,1),""),"") ->  | D156: =IF(C156=MAX(C156:$C$3000)-2,"Start","") -> 
A157: -0.003935 | B157: 0.00066 | C157: =IF(B157>1,IF(B157=MAX(B152:B162),IF(SUM(C$2:C155)>0,MAX(C$2:C155)+1,1),""),"") ->  | D157: =IF(C157=MAX(C157:$C$3000)-2,"Start","") -> 
A158: -0.00339 | B158: -0.000832 | C158: =IF(B158>1,IF(B158=MAX(B153:B163),IF(SUM(C$2:C156)>0,MAX(C$2:C156)+1,1),""),"") ->  | D158: =IF(C158=MAX(C158:$C$3000)-2,"Start","") -> 
A159: -0.004653 | B159: 0.001664 | C159: =IF(B159>1,IF(B159=MAX(B154:B164),IF(SUM(C$2:C157)>0,MAX(C$2:C157)+1,1),""),"") ->  | D159: =IF(C159=MAX(C159:$C$3000)-2,"Start","") -> 
A160: -0.003056 | B160: -0.000602 | C160: =IF(B160>1,IF(B160=MAX(B155:B165),IF(SUM(C$2:C158)>0,MAX(C$2:C158)+1,1),""),"") ->  | D160: =IF(C160=MAX(C160:$C$3000)-2,"Start","") -> 
A161: -0.005197 | B161: -0.000645 | C161: =IF(B161>1,IF(B161=MAX(B156:B166),IF(SUM(C$2:C159)>0,MAX(C$2:C159)+1,1),""),"") ->  | D161: =IF(C161=MAX(C161:$C$3000)-2,"Start","") -> 
A162: -0.002935 | B162: 0.000602 | C162: =IF(B162>1,IF(B162=MAX(B157:B167),IF(SUM(C$2:C160)>0,MAX(C$2:C160)+1,1),""),"") ->  | D162: =IF(C162=MAX(C162:$C$3000)-2,"Start","") -> 
A163: -0.002708 | B163: -0.000645 | C163: =IF(B163>1,IF(B163=MAX(B158:B168),IF(SUM(C$2:C161)>0,MAX(C$2:C161)+1,1),""),"") ->  | D163: =IF(C163=MAX(C163:$C$3000)-2,"Start","") -> 
A164: -0.005719 | B164: -0.00043 | C164: =IF(B164>1,IF(B164=MAX(B159:B169),IF(SUM(C$2:C162)>0,MAX(C$2:C162)+1,1),""),"") ->  | D164: =IF(C164=MAX(C164:$C$3000)-2,"Start","") -> 
A165: -0.002842 | B165: -4.302585e-05 | C165: =IF(B165>1,IF(B165=MAX(B160:B170),IF(SUM(C$2:C163)>0,MAX(C$2:C163)+1,1),""),"") ->  | D165: =IF(C165=MAX(C165:$C$3000)-2,"Start","") -> 
A166: -0.004816 | B166: -0.000674 | C166: =IF(B166>1,IF(B166=MAX(B161:B171),IF(SUM(C$2:C164)>0,MAX(C$2:C164)+1,1),""),"") ->  | D166: =IF(C166=MAX(C166:$C$3000)-2,"Start","") -> 
A167: -0.002745 | B167: 0.000617 | C167: =IF(B167>1,IF(B167=MAX(B162:B172),IF(SUM(C$2:C165)>0,MAX(C$2:C165)+1,1),""),"") ->  | D167: =IF(C167=MAX(C167:$C$3000)-2,"Start","") -> 
A168: -0.003019 | B168: 0.000947 | C168: =IF(B168>1,IF(B168=MAX(B163:B173),IF(SUM(C$2:C166)>0,MAX(C$2:C166)+1,1),""),"") ->  | D168: =IF(C168=MAX(C168:$C$3000)-2,"Start","") -> 
A169: -0.002163 | B169: 0 | C169: =IF(B169>1,IF(B169=MAX(B164:B174),IF(SUM(C$2:C167)>0,MAX(C$2:C167)+1,1),""),"") ->  | D169: =IF(C169=MAX(C169:$C$3000)-2,"Start","") -> 
A170: -0.00303 | B170: 0.000373 | C170: =IF(B170>1,IF(B170=MAX(B165:B175),IF(SUM(C$2:C168)>0,MAX(C$2:C168)+1,1),""),"") ->  | D170: =IF(C170=MAX(C170:$C$3000)-2,"Start","") -> 
A171: -0.001917 | B171: 0.000545 | C171: =IF(B171>1,IF(B171=MAX(B166:B176),IF(SUM(C$2:C169)>0,MAX(C$2:C169)+1,1),""),"") ->  | D171: =IF(C171=MAX(C171:$C$3000)-2,"Start","") -> 
A172: -0.003739 | B172: -0.001205 | C172: =IF(B172>1,IF(B172=MAX(B167:B177),IF(SUM(C$2:C170)>0,MAX(C$2:C170)+1,1),""),"") ->  | D172: =IF(C172=MAX(C172:$C$3000)-2,"Start","") -> 
A173: -0.004876 | B173: 0.000774 | C173: =IF(B173>1,IF(B173=MAX(B168:B178),IF(SUM(C$2:C171)>0,MAX(C$2:C171)+1,1),""),"") ->  | D173: =IF(C173=MAX(C173:$C$3000)-2,"Start","") -> 
A174: -0.003826 | B174: -7.170975e-05 | C174: =IF(B174>1,IF(B174=MAX(B169:B179),IF(SUM(C$2:C172)>0,MAX(C$2:C172)+1,1),""),"") ->  | D174: =IF(C174=MAX(C174:$C$3000)-2,"Start","") -> 
A175: -0.004115 | B175: -0.000502 | C175: =IF(B175>1,IF(B175=MAX(B170:B180),IF(SUM(C$2:C173)>0,MAX(C$2:C173)+1,1),""),"") ->  | D175: =IF(C175=MAX(C175:$C$3000)-2,"Start","") -> 
A176: -0.004219 | B176: 0.000459 | C176: =IF(B176>1,IF(B176=MAX(B171:B181),IF(SUM(C$2:C174)>0,MAX(C$2:C174)+1,1),""),"") ->  | D176: =IF(C176=MAX(C176:$C$3000)-2,"Start","") -> 
A177: -0.003789 | B177: 0.000387 | C177: =IF(B177>1,IF(B177=MAX(B172:B182),IF(SUM(C$2:C175)>0,MAX(C$2:C175)+1,1),""),"") ->  | D177: =IF(C177=MAX(C177:$C$3000)-2,"Start","") -> 
A178: -0.004482 | B178: -0.000287 | C178: =IF(B178>1,IF(B178=MAX(B173:B183),IF(SUM(C$2:C176)>0,MAX(C$2:C176)+1,1),""),"") ->  | D178: =IF(C178=MAX(C178:$C$3000)-2,"Start","") -> 
A179: -0.002891 | B179: 0.000703 | C179: =IF(B179>1,IF(B179=MAX(B174:B184),IF(SUM(C$2:C177)>0,MAX(C$2:C177)+1,1),""),"") ->  | D179: =IF(C179=MAX(C179:$C$3000)-2,"Start","") -> 
A180: -0.004678 | B180: -0.000947 | C180: =IF(B180>1,IF(B180=MAX(B175:B185),IF(SUM(C$2:C178)>0,MAX(C$2:C178)+1,1),""),"") ->  | D180: =IF(C180=MAX(C180:$C$3000)-2,"Start","") -> 
A181: -0.00378 | B181: 0.000387 | C181: =IF(B181>1,IF(B181=MAX(B176:B186),IF(SUM(C$2:C179)>0,MAX(C$2:C179)+1,1),""),"") ->  | D181: =IF(C181=MAX(C181:$C$3000)-2,"Start","") -> 
A182: -0.003555 | B182: -0.000488 | C182: =IF(B182>1,IF(B182=MAX(B177:B187),IF(SUM(C$2:C180)>0,MAX(C$2:C180)+1,1),""),"") ->  | D182: =IF(C182=MAX(C182:$C$3000)-2,"Start","") -> 
A183: -0.004216 | B183: 0.000502 | C183: =IF(B183>1,IF(B183=MAX(B178:B188),IF(SUM(C$2:C181)>0,MAX(C$2:C181)+1,1),""),"") ->  | D183: =IF(C183=MAX(C183:$C$3000)-2,"Start","") -> 
A184: -0.004422 | B184: 0.000272 | C184: =IF(B184>1,IF(B184=MAX(B179:B189),IF(SUM(C$2:C182)>0,MAX(C$2:C182)+1,1),""),"") ->  | D184: =IF(C184=MAX(C184:$C$3000)-2,"Start","") -> 
A185: -0.003889 | B185: 0.00043 | C185: =IF(B185>1,IF(B185=MAX(B180:B190),IF(SUM(C$2:C183)>0,MAX(C$2:C183)+1,1),""),"") ->  | D185: =IF(C185=MAX(C185:$C$3000)-2,"Start","") -> 
A186: -0.003573 | B186: -0.001793 | C186: =IF(B186>1,IF(B186=MAX(B181:B191),IF(SUM(C$2:C184)>0,MAX(C$2:C184)+1,1),""),"") ->  | D186: =IF(C186=MAX(C186:$C$3000)-2,"Start","") -> 
A187: -0.004757 | B187: -0.000301 | C187: =IF(B187>1,IF(B187=MAX(B182:B192),IF(SUM(C$2:C185)>0,MAX(C$2:C185)+1,1),""),"") ->  | D187: =IF(C187=MAX(C187:$C$3000)-2,"Start","") -> 
A188: -0.003114 | B188: -0.000617 | C188: =IF(B188>1,IF(B188=MAX(B183:B193),IF(SUM(C$2:C186)>0,MAX(C$2:C186)+1,1),""),"") ->  | D188: =IF(C188=MAX(C188:$C$3000)-2,"Start","") -> 
A189: -0.003629 | B189: -8.60517e-05 | C189: =IF(B189>1,IF(B189=MAX(B184:B194),IF(SUM(C$2:C187)>0,MAX(C$2:C187)+1,1),""),"") ->  | D189: =IF(C189=MAX(C189:$C$3000)-2,"Start","") -> 
A190: -0.002037 | B190: -0.000473 | C190: =IF(B190>1,IF(B190=MAX(B185:B195),IF(SUM(C$2:C188)>0,MAX(C$2:C188)+1,1),""),"") ->  | D190: =IF(C190=MAX(C190:$C$3000)-2,"Start","") -> 
A191: -0.004344 | B191: -0.001033 | C191: =IF(B191>1,IF(B191=MAX(B186:B196),IF(SUM(C$2:C189)>0,MAX(C$2:C189)+1,1),""),"") ->  | D191: =IF(C191=MAX(C191:$C$3000)-2,"Start","") -> 
A192: -0.004266 | B192: -0.000229 | C192: =IF(B192>1,IF(B192=MAX(B187:B197),IF(SUM(C$2:C190)>0,MAX(C$2:C190)+1,1),""),"") ->  | D192: =IF(C192=MAX(C192:$C$3000)-2,"Start","") -> 
A193: -0.001475 | B193: -0.000488 | C193: =IF(B193>1,IF(B193=MAX(B188:B198),IF(SUM(C$2:C191)>0,MAX(C$2:C191)+1,1),""),"") ->  | D193: =IF(C193=MAX(C193:$C$3000)-2,"Start","") -> 
A194: -0.00475 | B194: -0.000186 | C194: =IF(B194>1,IF(B194=MAX(B189:B199),IF(SUM(C$2:C192)>0,MAX(C$2:C192)+1,1),""),"") ->  | D194: =IF(C194=MAX(C194:$C$3000)-2,"Start","") -> 
A195: -0.003861 | B195: -0.00033 | C195: =IF(B195>1,IF(B195=MAX(B190:B200),IF(SUM(C$2:C193)>0,MAX(C$2:C193)+1,1),""),"") ->  | D195: =IF(C195=MAX(C195:$C$3000)-2,"Start","") -> 
A196: -0.004852 | B196: -0.000588 | C196: =IF(B196>1,IF(B196=MAX(B191:B201),IF(SUM(C$2:C194)>0,MAX(C$2:C194)+1,1),""),"") ->  | D196: =IF(C196=MAX(C196:$C$3000)-2,"Start","") -> 
A197: -0.003292 | B197: -0.000143 | C197: =IF(B197>1,IF(B197=MAX(B192:B202),IF(SUM(C$2:C195)>0,MAX(C$2:C195)+1,1),""),"") ->  | D197: =IF(C197=MAX(C197:$C$3000)-2,"Start","") -> 
A198: -0.004095 | B198: -0.001219 | C198: =IF(B198>1,IF(B198=MAX(B193:B203),IF(SUM(C$2:C196)>0,MAX(C$2:C196)+1,1),""),"") ->  | D198: =IF(C198=MAX(C198:$C$3000)-2,"Start","") -> 
A199: -0.003992 | B199: -1.434195e-05 | C199: =IF(B199>1,IF(B199=MAX(B194:B204),IF(SUM(C$2:C197)>0,MAX(C$2:C197)+1,1),""),"") ->  | D199: =IF(C199=MAX(C199:$C$3000)-2,"Start","") -> 
A200: -0.004414 | B200: -0.000115 | C200: =IF(B200>1,IF(B200=MAX(B195:B205),IF(SUM(C$2:C198)>0,MAX(C$2:C198)+1,1),""),"") ->  | D200: =IF(C200=MAX(C200:$C$3000)-2,"Start","") -> 
... 2691 more rows
